{"text_format":"1","workbook":"xlsx","n_sheets":1,"sheets":["Купоны"],"not_rendered":{"charts":0,"images":0,"macros":1,"external_links":0,"defined_names":6,"comments":1,"pivot_tables":0},"unopened":[],"bounds":{"document_bytes":16777216,"sheet_cells":100000,"rows_first":2000,"rows_last":500,"rows_between":2000,"halvings":0,"cell_chars":16384,"cell_head_chars":4096},"cells_cut":0,"cells_raw":0,"read":"whole","date_system":"1900"}

{"sheet":"Купоны","index":0,"n_rows":78,"n_cols":70,"rows_kept":78,"cut":false,"hidden":false,"merged":[[0,51,0,69],[33,51,33,69],[11,1,11,9],[0,37,0,50],[10,44,12,48],[3,39,4,42],[10,39,12,43],[2,39,2,42],[6,39,6,48],[7,39,9,44],[7,45,9,48],[2,44,4,48],[0,1,0,9],[5,1,5,9],[1,1,1,9],[12,1,12,9],[15,1,15,9],[14,1,14,9],[13,1,13,9],[2,1,2,9],[10,1,10,9],[3,1,3,9],[6,1,6,9],[7,1,7,9],[8,1,8,9],[9,1,9,9],[4,1,4,9]]}
["№","абвг",null,null,null,null,null,null,null,null,"авбгд","вамвмв",1,2,3,4,5,6,7,8,9,10,11,12,13,14,15,16,17,18,19,20,21,22,23,24,25,"Информация",null,null,null,null,null,null,null,null,null,null,null,null,null,"Отличия между купонами"]
[1,null,null,null,null,null,null,null,null,null,null,null,null,null,null,null,null,null,null,null,null,null,null,null,null,null,null,null,null,null,null,null,null,null,null,null,null,null,null,null,null,null,null,null,null,null,null,null,null,null,null,"1-2","1-3","2-3","1-4","2-4","3-4","1-5","2-5","3-5","4-5","1-6","2-6","3-6","4-6","5-6","1-7","2-7","3-7","4-7"]
[2,null,null,null,null,null,null,null,null,null,null,null,null,null,null,null,null,null,null,null,null,null,null,null,null,null,null,null,null,null,null,null,null,null,null,null,null,null,null,"Отобразить ",null,null,null,null,null,null,null,null,null,null,null,{"$f":"SUMPRODUCT(ISNUMBER(M2:M16)*ISTEXT(N2:N16)*(M2:M16<>N2:N16))+SUMPRODUCT(ISTEXT(M2:M16)*ISNUMBER(N2:N16)*(M2:M16<>N2:N16))+SUMPRODUCT(ISTEXT(M2:M16)*ISTEXT(N2:N16)*(M2:M16<>N2:N16))+SUMPRODUCT(ISNUMBER(M2:M16)*ISNUMBER(N2:N16)*(M2:M16<>N2:N16))","v":0},{"$f":"SUMPRODUCT(ISNUMBER(M2:M16)*ISTEXT(O2:O16)*(M2:M16<>O2:O16))+SUMPRODUCT(ISTEXT(M2:M16)*ISNUMBER(O2:O16)*(M2:M16<>O2:O16))+SUMPRODUCT(ISTEXT(M2:M16)*ISTEXT(O2:O16)*(M2:M16<>O2:O16))+SUMPRODUCT(ISNUMBER(M2:M16)*ISNUMBER(O2:O16)*(M2:M16<>O2:O16))","v":0},{"$f":"SUMPRODUCT(ISNUMBER(N2:N16)*ISTEXT(O2:O16)*(N2:N16<>O2:O16))+SUMPRODUCT(ISTEXT(N2:N16)*ISNUMBER(O2:O16)*(N2:N16<>O2:O16))+SUMPRODUCT(ISTEXT(N2:N16)*ISTEXT(O2:O16)*(N2:N16<>O2:O16))+SUMPRODUCT(ISNUMBER(N2:N16)*ISNUMBER(O2:O16)*(N2:N16<>O2:O16))","v":0},{"$f":"SUMPRODUCT(ISNUMBER(M2:M16)*ISTEXT(P2:P16)*(M2:M16<>P2:P16))+SUMPRODUCT(ISTEXT(M2:M16)*ISNUMBER(P2:P16)*(M2:M16<>P2:P16))+SUMPRODUCT(ISTEXT(M2:M16)*ISTEXT(P2:P16)*(M2:M16<>P2:P16))+SUMPRODUCT(ISNUMBER(M2:M16)*ISNUMBER(P2:P16)*(M2:M16<>P2:P16))","v":0},{"$f":"SUMPRODUCT(ISNUMBER(N2:N16)*ISTEXT(P2:P16)*(N2:N16<>P2:P16))+SUMPRODUCT(ISTEXT(N2:N16)*ISNUMBER(P2:P16)*(N2:N16<>P2:P16))+SUMPRODUCT(ISTEXT(N2:N16)*ISTEXT(P2:P16)*(N2:N16<>P2:P16))+SUMPRODUCT(ISNUMBER(N2:N16)*ISNUMBER(P2:P16)*(N2:N16<>P2:P16))","v":0},{"$f":"SUMPRODUCT(ISNUMBER(O2:O16)*ISTEXT(P2:P16)*(O2:O16<>P2:P16))+SUMPRODUCT(ISTEXT(O2:O16)*ISNUMBER(P2:P16)*(O2:O16<>P2:P16))+SUMPRODUCT(ISTEXT(O2:O16)*ISTEXT(P2:P16)*(O2:O16<>P2:P16))+SUMPRODUCT(ISNUMBER(O2:O16)*ISNUMBER(P2:P16)*(O2:O16<>P2:P16))","v":0},{"$f":"SUMPRODUCT(ISNUMBER(M2:M16)*ISTEXT(Q2:Q16)*(M2:M16<>Q2:Q16))+SUMPRODUCT(ISTEXT(M2:M16)*ISNUMBER(Q2:Q16)*(M2:M16<>Q2:Q16))+SUMPRODUCT(ISTEXT(M2:M16)*ISTEXT(Q2:Q16)*(M2:M16<>Q2:Q16))+SUMPRODUCT(ISNUMBER(M2:M16)*ISNUMBER(Q2:Q16)*(M2:M16<>Q2:Q16))","v":0},{"$f":"SUMPRODUCT(ISNUMBER(N2:N16)*ISTEXT(Q2:Q16)*(N2:N16<>Q2:Q16))+SUMPRODUCT(ISTEXT(N2:N16)*ISNUMBER(Q2:Q16)*(N2:N16<>Q2:Q16))+SUMPRODUCT(ISTEXT(N2:N16)*ISTEXT(Q2:Q16)*(N2:N16<>Q2:Q16))+SUMPRODUCT(ISNUMBER(N2:N16)*ISNUMBER(Q2:Q16)*(N2:N16<>Q2:Q16))","v":0},{"$f":"SUMPRODUCT(ISNUMBER(O2:O16)*ISTEXT(Q2:Q16)*(O2:O16<>Q2:Q16))+SUMPRODUCT(ISTEXT(O2:O16)*ISNUMBER(Q2:Q16)*(O2:O16<>Q2:Q16))+SUMPRODUCT(ISTEXT(O2:O16)*ISTEXT(Q2:Q16)*(O2:O16<>Q2:Q16))+SUMPRODUCT(ISNUMBER(O2:O16)*ISNUMBER(Q2:Q16)*(O2:O16<>Q2:Q16))","v":0},{"$f":"SUMPRODUCT(ISNUMBER(P2:P16)*ISTEXT(Q2:Q16)*(P2:P16<>Q2:Q16))+SUMPRODUCT(ISTEXT(P2:P16)*ISNUMBER(Q2:Q16)*(P2:P16<>Q2:Q16))+SUMPRODUCT(ISTEXT(P2:P16)*ISTEXT(Q2:Q16)*(P2:P16<>Q2:Q16))+SUMPRODUCT(ISNUMBER(P2:P16)*ISNUMBER(Q2:Q16)*(P2:P16<>Q2:Q16))","v":0},{"$f":"SUMPRODUCT(ISNUMBER(M2:M16)*ISTEXT(R2:R16)*(M2:M16<>R2:R16))+SUMPRODUCT(ISTEXT(M2:M16)*ISNUMBER(R2:R16)*(M2:M16<>R2:R16))+SUMPRODUCT(ISTEXT(M2:M16)*ISTEXT(R2:R16)*(M2:M16<>R2:R16))+SUMPRODUCT(ISNUMBER(M2:M16)*ISNUMBER(R2:R16)*(M2:M16<>R2:R16))","v":0},{"$f":"SUMPRODUCT(ISNUMBER(N2:N16)*ISTEXT(R2:R16)*(N2:N16<>R2:R16))+SUMPRODUCT(ISTEXT(N2:N16)*ISNUMBER(R2:R16)*(N2:N16<>R2:R16))+SUMPRODUCT(ISTEXT(N2:N16)*ISTEXT(R2:R16)*(N2:N16<>R2:R16))+SUMPRODUCT(ISNUMBER(N2:N16)*ISNUMBER(R2:R16)*(N2:N16<>R2:R16))","v":0},{"$f":"SUMPRODUCT(ISNUMBER(O2:O16)*ISTEXT(R2:R16)*(O2:O16<>R2:R16))+SUMPRODUCT(ISTEXT(O2:O16)*ISNUMBER(R2:R16)*(O2:O16<>R2:R16))+SUMPRODUCT(ISTEXT(O2:O16)*ISTEXT(R2:R16)*(O2:O16<>R2:R16))+SUMPRODUCT(ISNUMBER(O2:O16)*ISNUMBER(R2:R16)*(O2:O16<>R2:R16))","v":0},{"$f":"SUMPRODUCT(ISNUMBER(P2:P16)*ISTEXT(R2:R16)*(P2:P16<>R2:R16))+SUMPRODUCT(ISTEXT(P2:P16)*ISNUMBER(R2:R16)*(P2:P16<>R2:R16))+SUMPRODUCT(ISTEXT(P2:P16)*ISTEXT(R2:R16)*(P2:P16<>R2:R16))+SUMPRODUCT(ISNUMBER(P2:P16)*ISNUMBER(R2:R16)*(P2:P16<>R2:R16))","v":0},{"$f":"SUMPRODUCT(ISNUMBER(Q2:Q16)*ISTEXT(R2:R16)*(Q2:Q16<>R2:R16))+SUMPRODUCT(ISTEXT(Q2:Q16)*ISNUMBER(R2:R16)*(Q2:Q16<>R2:R16))+SUMPRODUCT(ISTEXT(Q2:Q16)*ISTEXT(R2:R16)*(Q2:Q16<>R2:R16))+SUMPRODUCT(ISNUMBER(Q2:Q16)*ISNUMBER(R2:R16)*(Q2:Q16<>R2:R16))","v":0},{"$f":"SUMPRODUCT(ISNUMBER(M2:M16)*ISTEXT(S2:S16)*(M2:M16<>S2:S16))+SUMPRODUCT(ISTEXT(M2:M16)*ISNUMBER(S2:S16)*(M2:M16<>S2:S16))+SUMPRODUCT(ISTEXT(M2:M16)*ISTEXT(S2:S16)*(M2:M16<>S2:S16))+SUMPRODUCT(ISNUMBER(M2:M16)*ISNUMBER(S2:S16)*(M2:M16<>S2:S16))","v":0},{"$f":"SUMPRODUCT(ISNUMBER(N2:N16)*ISTEXT(S2:S16)*(N2:N16<>S2:S16))+SUMPRODUCT(ISTEXT(N2:N16)*ISNUMBER(S2:S16)*(N2:N16<>S2:S16))+SUMPRODUCT(ISTEXT(N2:N16)*ISTEXT(S2:S16)*(N2:N16<>S2:S16))+SUMPRODUCT(ISNUMBER(N2:N16)*ISNUMBER(S2:S16)*(N2:N16<>S2:S16))","v":0},{"$f":"SUMPRODUCT(ISNUMBER(O2:O16)*ISTEXT(S2:S16)*(O2:O16<>S2:S16))+SUMPRODUCT(ISTEXT(O2:O16)*ISNUMBER(S2:S16)*(O2:O16<>S2:S16))+SUMPRODUCT(ISTEXT(O2:O16)*ISTEXT(S2:S16)*(O2:O16<>S2:S16))+SUMPRODUCT(ISNUMBER(O2:O16)*ISNUMBER(S2:S16)*(O2:O16<>S2:S16))","v":0},{"$f":"SUMPRODUCT(ISNUMBER(P2:P16)*ISTEXT(S2:S16)*(P2:P16<>S2:S16))+SUMPRODUCT(ISTEXT(P2:P16)*ISNUMBER(S2:S16)*(P2:P16<>S2:S16))+SUMPRODUCT(ISTEXT(P2:P16)*ISTEXT(S2:S16)*(P2:P16<>S2:S16))+SUMPRODUCT(ISNUMBER(P2:P16)*ISNUMBER(S2:S16)*(P2:P16<>S2:S16))","v":0}]
[3,null,null,null,null,null,null,null,null,null,null,null,null,null,null,null,null,null,null,null,null,null,null,null,null,null,null,null,null,null,null,null,null,null,null,null,null,null,null,25,null,null,null,null,null,null,null,null,null,null,null,"5-7","6-7","1-8","2-8","3-8","4-8","5-8","6-8","7-8","1-9","2-9","4-9","3-9","5-9","6-9","7-9","8-9","1-10","2-10"]
[4,null,null,null,null,null,null,null,null,null,null,null,null,null,null,null,null,null,null,null,null,null,null,null,null,null,null,null,null,null,null,null,null,null,null,null,null,null,null,null,null,null,null,null,null,null,null,null,null,null,null,{"$f":"SUMPRODUCT(ISNUMBER(Q2:Q16)*ISTEXT(S2:S16)*(Q2:Q16<>S2:S16))+SUMPRODUCT(ISTEXT(Q2:Q16)*ISNUMBER(S2:S16)*(Q2:Q16<>S2:S16))+SUMPRODUCT(ISTEXT(Q2:Q16)*ISTEXT(S2:S16)*(Q2:Q16<>S2:S16))+SUMPRODUCT(ISNUMBER(Q2:Q16)*ISNUMBER(S2:S16)*(Q2:Q16<>S2:S16))","v":0},{"$f":"SUMPRODUCT(ISNUMBER(R2:R16)*ISTEXT(S2:S16)*(R2:R16<>S2:S16))+SUMPRODUCT(ISTEXT(R2:R16)*ISNUMBER(S2:S16)*(R2:R16<>S2:S16))+SUMPRODUCT(ISTEXT(R2:R16)*ISTEXT(S2:S16)*(R2:R16<>S2:S16))+SUMPRODUCT(ISNUMBER(R2:R16)*ISNUMBER(S2:S16)*(R2:R16<>S2:S16))","v":0},{"$f":"SUMPRODUCT(ISNUMBER(M2:M16)*ISTEXT(T2:T16)*(M2:M16<>T2:T16))+SUMPRODUCT(ISTEXT(M2:M16)*ISNUMBER(T2:T16)*(M2:M16<>T2:T16))+SUMPRODUCT(ISTEXT(M2:M16)*ISTEXT(T2:T16)*(M2:M16<>T2:T16))+SUMPRODUCT(ISNUMBER(M2:M16)*ISNUMBER(T2:T16)*(M2:M16<>T2:T16))","v":0},{"$f":"SUMPRODUCT(ISNUMBER(N2:N16)*ISTEXT(T2:T16)*(N2:N16<>T2:T16))+SUMPRODUCT(ISTEXT(N2:N16)*ISNUMBER(T2:T16)*(N2:N16<>T2:T16))+SUMPRODUCT(ISTEXT(N2:N16)*ISTEXT(T2:T16)*(N2:N16<>T2:T16))+SUMPRODUCT(ISNUMBER(N2:N16)*ISNUMBER(T2:T16)*(N2:N16<>T2:T16))","v":0},{"$f":"SUMPRODUCT(ISNUMBER(O2:O16)*ISTEXT(T2:T16)*(O2:O16<>T2:T16))+SUMPRODUCT(ISTEXT(O2:O16)*ISNUMBER(T2:T16)*(O2:O16<>T2:T16))+SUMPRODUCT(ISTEXT(O2:O16)*ISTEXT(T2:T16)*(O2:O16<>T2:T16))+SUMPRODUCT(ISNUMBER(O2:O16)*ISNUMBER(T2:T16)*(O2:O16<>T2:T16))","v":0},{"$f":"SUMPRODUCT(ISNUMBER(P2:P16)*ISTEXT(T2:T16)*(P2:P16<>T2:T16))+SUMPRODUCT(ISTEXT(P2:P16)*ISNUMBER(T2:T16)*(P2:P16<>T2:T16))+SUMPRODUCT(ISTEXT(P2:P16)*ISTEXT(T2:T16)*(P2:P16<>T2:T16))+SUMPRODUCT(ISNUMBER(P2:P16)*ISNUMBER(T2:T16)*(P2:P16<>T2:T16))","v":0},{"$f":"SUMPRODUCT(ISNUMBER(Q2:Q16)*ISTEXT(T2:T16)*(Q2:Q16<>T2:T16))+SUMPRODUCT(ISTEXT(Q2:Q16)*ISNUMBER(T2:T16)*(Q2:Q16<>T2:T16))+SUMPRODUCT(ISTEXT(Q2:Q16)*ISTEXT(T2:T16)*(Q2:Q16<>T2:T16))+SUMPRODUCT(ISNUMBER(Q2:Q16)*ISNUMBER(T2:T16)*(Q2:Q16<>T2:T16))","v":0},{"$f":"SUMPRODUCT(ISNUMBER(R2:R16)*ISTEXT(T2:T16)*(R2:R16<>T2:T16))+SUMPRODUCT(ISTEXT(R2:R16)*ISNUMBER(T2:T16)*(R2:R16<>T2:T16))+SUMPRODUCT(ISTEXT(R2:R16)*ISTEXT(T2:T16)*(R2:R16<>T2:T16))+SUMPRODUCT(ISNUMBER(R2:R16)*ISNUMBER(T2:T16)*(R2:R16<>T2:T16))","v":0},{"$f":"SUMPRODUCT(ISNUMBER(S2:S16)*ISTEXT(T2:T16)*(S2:S16<>T2:T16))+SUMPRODUCT(ISTEXT(S2:S16)*ISNUMBER(T2:T16)*(S2:S16<>T2:T16))+SUMPRODUCT(ISTEXT(S2:S16)*ISTEXT(T2:T16)*(S2:S16<>T2:T16))+SUMPRODUCT(ISNUMBER(S2:S16)*ISNUMBER(T2:T16)*(S2:S16<>T2:T16))","v":0},{"$f":"SUMPRODUCT(ISNUMBER(M2:M16)*ISTEXT(U2:U16)*(M2:M16<>U2:U16))+SUMPRODUCT(ISTEXT(M2:M16)*ISNUMBER(U2:U16)*(M2:M16<>U2:U16))+SUMPRODUCT(ISTEXT(M2:M16)*ISTEXT(U2:U16)*(M2:M16<>U2:U16))+SUMPRODUCT(ISNUMBER(M2:M16)*ISNUMBER(U2:U16)*(M2:M16<>U2:U16))","v":0},{"$f":"SUMPRODUCT(ISNUMBER(N2:N16)*ISTEXT(U2:U16)*(N2:N16<>U2:U16))+SUMPRODUCT(ISTEXT(N2:N16)*ISNUMBER(U2:U16)*(N2:N16<>U2:U16))+SUMPRODUCT(ISTEXT(N2:N16)*ISTEXT(U2:U16)*(N2:N16<>U2:U16))+SUMPRODUCT(ISNUMBER(N2:N16)*ISNUMBER(U2:U16)*(N2:N16<>U2:U16))","v":0},{"$f":"SUMPRODUCT(ISNUMBER(P2:P16)*ISTEXT(U2:U16)*(P2:P16<>U2:U16))+SUMPRODUCT(ISTEXT(P2:P16)*ISNUMBER(U2:U16)*(P2:P16<>U2:U16))+SUMPRODUCT(ISTEXT(P2:P16)*ISTEXT(U2:U16)*(P2:P16<>U2:U16))+SUMPRODUCT(ISNUMBER(P2:P16)*ISNUMBER(U2:U16)*(P2:P16<>U2:U16))","v":0},{"$f":"SUMPRODUCT(ISNUMBER(O2:O16)*ISTEXT(U2:U16)*(O2:O16<>U2:U16))+SUMPRODUCT(ISTEXT(O2:O16)*ISNUMBER(U2:U16)*(O2:O16<>U2:U16))+SUMPRODUCT(ISTEXT(O2:O16)*ISTEXT(U2:U16)*(O2:O16<>U2:U16))+SUMPRODUCT(ISNUMBER(O2:O16)*ISNUMBER(U2:U16)*(O2:O16<>U2:U16))","v":0},{"$f":"SUMPRODUCT(ISNUMBER(Q2:Q16)*ISTEXT(U2:U16)*(Q2:Q16<>U2:U16))+SUMPRODUCT(ISTEXT(Q2:Q16)*ISNUMBER(U2:U16)*(Q2:Q16<>U2:U16))+SUMPRODUCT(ISTEXT(Q2:Q16)*ISTEXT(U2:U16)*(Q2:Q16<>U2:U16))+SUMPRODUCT(ISNUMBER(Q2:Q16)*ISNUMBER(U2:U16)*(Q2:Q16<>U2:U16))","v":0},{"$f":"SUMPRODUCT(ISNUMBER(R2:R16)*ISTEXT(U2:U16)*(R2:R16<>U2:U16))+SUMPRODUCT(ISTEXT(R2:R16)*ISNUMBER(U2:U16)*(R2:R16<>U2:U16))+SUMPRODUCT(ISTEXT(R2:R16)*ISTEXT(U2:U16)*(R2:R16<>U2:U16))+SUMPRODUCT(ISNUMBER(R2:R16)*ISNUMBER(U2:U16)*(R2:R16<>U2:U16))","v":0},{"$f":"SUMPRODUCT(ISNUMBER(S2:S16)*ISTEXT(U2:U16)*(S2:S16<>U2:U16))+SUMPRODUCT(ISTEXT(S2:S16)*ISNUMBER(U2:U16)*(S2:S16<>U2:U16))+SUMPRODUCT(ISTEXT(S2:S16)*ISTEXT(U2:U16)*(S2:S16<>U2:U16))+SUMPRODUCT(ISNUMBER(S2:S16)*ISNUMBER(U2:U16)*(S2:S16<>U2:U16))","v":0},{"$f":"SUMPRODUCT(ISNUMBER(T2:T16)*ISTEXT(U2:U16)*(T2:T16<>U2:U16))+SUMPRODUCT(ISTEXT(T2:T16)*ISNUMBER(U2:U16)*(T2:T16<>U2:U16))+SUMPRODUCT(ISTEXT(T2:T16)*ISTEXT(U2:U16)*(T2:T16<>U2:U16))+SUMPRODUCT(ISNUMBER(T2:T16)*ISNUMBER(U2:U16)*(T2:T16<>U2:U16))","v":0},{"$f":"SUMPRODUCT(ISNUMBER(M2:M16)*ISTEXT(V2:V16)*(M2:M16<>V2:V16))+SUMPRODUCT(ISTEXT(M2:M16)*ISNUMBER(V2:V16)*(M2:M16<>V2:V16))+SUMPRODUCT(ISTEXT(M2:M16)*ISTEXT(V2:V16)*(M2:M16<>V2:V16))+SUMPRODUCT(ISNUMBER(M2:M16)*ISNUMBER(V2:V16)*(M2:M16<>V2:V16))","v":0},{"$f":"SUMPRODUCT(ISNUMBER(N2:N16)*ISTEXT(V2:V16)*(N2:N16<>V2:V16))+SUMPRODUCT(ISTEXT(N2:N16)*ISNUMBER(V2:V16)*(N2:N16<>V2:V16))+SUMPRODUCT(ISTEXT(N2:N16)*ISTEXT(V2:V16)*(N2:N16<>V2:V16))+SUMPRODUCT(ISNUMBER(N2:N16)*ISNUMBER(V2:V16)*(N2:N16<>V2:V16))","v":0}]
[5,null,null,null,null,null,null,null,null,null,null,null,null,null,null,null,null,null,null,null,null,null,null,null,null,null,null,null,null,null,null,null,null,null,null,null,null,null,null,null,null,null,null,null,null,null,null,null,null,null,null,"3-10","4-10","5-10","6-10","7-10","8-10","9-10","1-11","2-11","3-11","4-11","5-11","6-11","7-11","8-11","9-11","10-11","1-12","2-12"]
[6,null,null,null,null,null,null,null,null,null,null,null,null,null,null,null,null,null,null,null,null,null,null,null,null,null,null,null,null,null,null,null,null,null,null,null,null,null,null,"Заполнить случайно",null,null,null,null,null,null,null,null,null,null,null,{"$f":"SUMPRODUCT(ISNUMBER(O2:O16)*ISTEXT(V2:V16)*(O2:O16<>V2:V16))+SUMPRODUCT(ISTEXT(O2:O16)*ISNUMBER(V2:V16)*(O2:O16<>V2:V16))+SUMPRODUCT(ISTEXT(O2:O16)*ISTEXT(V2:V16)*(O2:O16<>V2:V16))+SUMPRODUCT(ISNUMBER(O2:O16)*ISNUMBER(V2:V16)*(O2:O16<>V2:V16))","v":0},{"$f":"SUMPRODUCT(ISNUMBER(P2:P16)*ISTEXT(V2:V16)*(P2:P16<>V2:V16))+SUMPRODUCT(ISTEXT(P2:P16)*ISNUMBER(V2:V16)*(P2:P16<>V2:V16))+SUMPRODUCT(ISTEXT(P2:P16)*ISTEXT(V2:V16)*(P2:P16<>V2:V16))+SUMPRODUCT(ISNUMBER(P2:P16)*ISNUMBER(V2:V16)*(P2:P16<>V2:V16))","v":0},{"$f":"SUMPRODUCT(ISNUMBER(Q2:Q16)*ISTEXT(V2:V16)*(Q2:Q16<>V2:V16))+SUMPRODUCT(ISTEXT(Q2:Q16)*ISNUMBER(V2:V16)*(Q2:Q16<>V2:V16))+SUMPRODUCT(ISTEXT(Q2:Q16)*ISTEXT(V2:V16)*(Q2:Q16<>V2:V16))+SUMPRODUCT(ISNUMBER(Q2:Q16)*ISNUMBER(V2:V16)*(Q2:Q16<>V2:V16))","v":0},{"$f":"SUMPRODUCT(ISNUMBER(R2:R16)*ISTEXT(V2:V16)*(R2:R16<>V2:V16))+SUMPRODUCT(ISTEXT(R2:R16)*ISNUMBER(V2:V16)*(R2:R16<>V2:V16))+SUMPRODUCT(ISTEXT(R2:R16)*ISTEXT(V2:V16)*(R2:R16<>V2:V16))+SUMPRODUCT(ISNUMBER(R2:R16)*ISNUMBER(V2:V16)*(R2:R16<>V2:V16))","v":0},{"$f":"SUMPRODUCT(ISNUMBER(S2:S16)*ISTEXT(V2:V16)*(S2:S16<>V2:V16))+SUMPRODUCT(ISTEXT(S2:S16)*ISNUMBER(V2:V16)*(S2:S16<>V2:V16))+SUMPRODUCT(ISTEXT(S2:S16)*ISTEXT(V2:V16)*(S2:S16<>V2:V16))+SUMPRODUCT(ISNUMBER(S2:S16)*ISNUMBER(V2:V16)*(S2:S16<>V2:V16))","v":0},{"$f":"SUMPRODUCT(ISNUMBER(T2:T16)*ISTEXT(V2:V16)*(T2:T16<>V2:V16))+SUMPRODUCT(ISTEXT(T2:T16)*ISNUMBER(V2:V16)*(T2:T16<>V2:V16))+SUMPRODUCT(ISTEXT(T2:T16)*ISTEXT(V2:V16)*(T2:T16<>V2:V16))+SUMPRODUCT(ISNUMBER(T2:T16)*ISNUMBER(V2:V16)*(T2:T16<>V2:V16))","v":0},{"$f":"SUMPRODUCT(ISNUMBER(U2:U16)*ISTEXT(V2:V16)*(U2:U16<>V2:V16))+SUMPRODUCT(ISTEXT(U2:U16)*ISNUMBER(V2:V16)*(U2:U16<>V2:V16))+SUMPRODUCT(ISTEXT(U2:U16)*ISTEXT(V2:V16)*(U2:U16<>V2:V16))+SUMPRODUCT(ISNUMBER(U2:U16)*ISNUMBER(V2:V16)*(U2:U16<>V2:V16))","v":0},{"$f":"SUMPRODUCT(ISNUMBER(M2:M16)*ISTEXT(W2:W16)*(M2:M16<>W2:W16))+SUMPRODUCT(ISTEXT(M2:M16)*ISNUMBER(W2:W16)*(M2:M16<>W2:W16))+SUMPRODUCT(ISTEXT(M2:M16)*ISTEXT(W2:W16)*(M2:M16<>W2:W16))+SUMPRODUCT(ISNUMBER(M2:M16)*ISNUMBER(W2:W16)*(M2:M16<>W2:W16))","v":0},{"$f":"SUMPRODUCT(ISNUMBER(N2:N16)*ISTEXT(W2:W16)*(N2:N16<>W2:W16))+SUMPRODUCT(ISTEXT(N2:N16)*ISNUMBER(W2:W16)*(N2:N16<>W2:W16))+SUMPRODUCT(ISTEXT(N2:N16)*ISTEXT(W2:W16)*(N2:N16<>W2:W16))+SUMPRODUCT(ISNUMBER(N2:N16)*ISNUMBER(W2:W16)*(N2:N16<>W2:W16))","v":0},{"$f":"SUMPRODUCT(ISNUMBER(O2:O16)*ISTEXT(W2:W16)*(O2:O16<>W2:W16))+SUMPRODUCT(ISTEXT(O2:O16)*ISNUMBER(W2:W16)*(O2:O16<>W2:W16))+SUMPRODUCT(ISTEXT(O2:O16)*ISTEXT(W2:W16)*(O2:O16<>W2:W16))+SUMPRODUCT(ISNUMBER(O2:O16)*ISNUMBER(W2:W16)*(O2:O16<>W2:W16))","v":0},{"$f":"SUMPRODUCT(ISNUMBER(P2:P16)*ISTEXT(W2:W16)*(P2:P16<>W2:W16))+SUMPRODUCT(ISTEXT(P2:P16)*ISNUMBER(W2:W16)*(P2:P16<>W2:W16))+SUMPRODUCT(ISTEXT(P2:P16)*ISTEXT(W2:W16)*(P2:P16<>W2:W16))+SUMPRODUCT(ISNUMBER(P2:P16)*ISNUMBER(W2:W16)*(P2:P16<>W2:W16))","v":0},{"$f":"SUMPRODUCT(ISNUMBER(Q2:Q16)*ISTEXT(W2:W16)*(Q2:Q16<>W2:W16))+SUMPRODUCT(ISTEXT(Q2:Q16)*ISNUMBER(W2:W16)*(Q2:Q16<>W2:W16))+SUMPRODUCT(ISTEXT(Q2:Q16)*ISTEXT(W2:W16)*(Q2:Q16<>W2:W16))+SUMPRODUCT(ISNUMBER(Q2:Q16)*ISNUMBER(W2:W16)*(Q2:Q16<>W2:W16))","v":0},{"$f":"SUMPRODUCT(ISNUMBER(R2:R16)*ISTEXT(W2:W16)*(R2:R16<>W2:W16))+SUMPRODUCT(ISTEXT(R2:R16)*ISNUMBER(W2:W16)*(R2:R16<>W2:W16))+SUMPRODUCT(ISTEXT(R2:R16)*ISTEXT(W2:W16)*(R2:R16<>W2:W16))+SUMPRODUCT(ISNUMBER(R2:R16)*ISNUMBER(W2:W16)*(R2:R16<>W2:W16))","v":0},{"$f":"SUMPRODUCT(ISNUMBER(S2:S16)*ISTEXT(W2:W16)*(S2:S16<>W2:W16))+SUMPRODUCT(ISTEXT(S2:S16)*ISNUMBER(W2:W16)*(S2:S16<>W2:W16))+SUMPRODUCT(ISTEXT(S2:S16)*ISTEXT(W2:W16)*(S2:S16<>W2:W16))+SUMPRODUCT(ISNUMBER(S2:S16)*ISNUMBER(W2:W16)*(S2:S16<>W2:W16))","v":0},{"$f":"SUMPRODUCT(ISNUMBER(T2:T16)*ISTEXT(W2:W16)*(T2:T16<>W2:W16))+SUMPRODUCT(ISTEXT(T2:T16)*ISNUMBER(W2:W16)*(T2:T16<>W2:W16))+SUMPRODUCT(ISTEXT(T2:T16)*ISTEXT(W2:W16)*(T2:T16<>W2:W16))+SUMPRODUCT(ISNUMBER(T2:T16)*ISNUMBER(W2:W16)*(T2:T16<>W2:W16))","v":0},{"$f":"SUMPRODUCT(ISNUMBER(U2:U16)*ISTEXT(W2:W16)*(U2:U16<>W2:W16))+SUMPRODUCT(ISTEXT(U2:U16)*ISNUMBER(W2:W16)*(U2:U16<>W2:W16))+SUMPRODUCT(ISTEXT(U2:U16)*ISTEXT(W2:W16)*(U2:U16<>W2:W16))+SUMPRODUCT(ISNUMBER(U2:U16)*ISNUMBER(W2:W16)*(U2:U16<>W2:W16))","v":0},{"$f":"SUMPRODUCT(ISNUMBER(V2:V16)*ISTEXT(W2:W16)*(V2:V16<>W2:W16))+SUMPRODUCT(ISTEXT(V2:V16)*ISNUMBER(W2:W16)*(V2:V16<>W2:W16))+SUMPRODUCT(ISTEXT(V2:V16)*ISTEXT(W2:W16)*(V2:V16<>W2:W16))+SUMPRODUCT(ISNUMBER(V2:V16)*ISNUMBER(W2:W16)*(V2:V16<>W2:W16))","v":0},{"$f":"SUMPRODUCT(ISNUMBER(M2:M16)*ISTEXT(X2:X16)*(M2:M16<>X2:X16))+SUMPRODUCT(ISTEXT(M2:M16)*ISNUMBER(X2:X16)*(M2:M16<>X2:X16))+SUMPRODUCT(ISTEXT(M2:M16)*ISTEXT(X2:X16)*(M2:M16<>X2:X16))+SUMPRODUCT(ISNUMBER(M2:M16)*ISNUMBER(X2:X16)*(M2:M16<>X2:X16))","v":0},{"$f":"SUMPRODUCT(ISNUMBER(N2:N16)*ISTEXT(X2:X16)*(N2:N16<>X2:X16))+SUMPRODUCT(ISTEXT(N2:N16)*ISNUMBER(X2:X16)*(N2:N16<>X2:X16))+SUMPRODUCT(ISTEXT(N2:N16)*ISTEXT(X2:X16)*(N2:N16<>X2:X16))+SUMPRODUCT(ISNUMBER(N2:N16)*ISNUMBER(X2:X16)*(N2:N16<>X2:X16))","v":0}]
[7,null,null,null,null,null,null,null,null,null,null,null,null,null,null,null,null,null,null,null,null,null,null,null,null,null,null,null,null,null,null,null,null,null,null,null,null,null,null,null,null,null,null,null,null,null,null,null,null,null,null,"3-12","4-12","5-12","6-12","7-12","8-12","9-12","10-12","11-12","1-13","2-13","3-13","4-13","5-13","6-13","7-13","8-13","9-13","10-13"]
[8,null,null,null,null,null,null,null,null,null,null,null,null,null,null,null,null,null,null,null,null,null,null,null,null,null,null,null,null,null,null,null,null,null,null,null,null,null,null,null,null,null,null,null,null,null,null,null,null,null,null,{"$f":"SUMPRODUCT(ISNUMBER(O2:O16)*ISTEXT(X2:X16)*(O2:O16<>X2:X16))+SUMPRODUCT(ISTEXT(O2:O16)*ISNUMBER(X2:X16)*(O2:O16<>X2:X16))+SUMPRODUCT(ISTEXT(O2:O16)*ISTEXT(X2:X16)*(O2:O16<>X2:X16))+SUMPRODUCT(ISNUMBER(O2:O16)*ISNUMBER(X2:X16)*(O2:O16<>X2:X16))","v":0},{"$f":"SUMPRODUCT(ISNUMBER(P2:P16)*ISTEXT(X2:X16)*(P2:P16<>X2:X16))+SUMPRODUCT(ISTEXT(P2:P16)*ISNUMBER(X2:X16)*(P2:P16<>X2:X16))+SUMPRODUCT(ISTEXT(P2:P16)*ISTEXT(X2:X16)*(P2:P16<>X2:X16))+SUMPRODUCT(ISNUMBER(P2:P16)*ISNUMBER(X2:X16)*(P2:P16<>X2:X16))","v":0},{"$f":"SUMPRODUCT(ISNUMBER(Q2:Q16)*ISTEXT(X2:X16)*(Q2:Q16<>X2:X16))+SUMPRODUCT(ISTEXT(Q2:Q16)*ISNUMBER(X2:X16)*(Q2:Q16<>X2:X16))+SUMPRODUCT(ISTEXT(Q2:Q16)*ISTEXT(X2:X16)*(Q2:Q16<>X2:X16))+SUMPRODUCT(ISNUMBER(Q2:Q16)*ISNUMBER(X2:X16)*(Q2:Q16<>X2:X16))","v":0},{"$f":"SUMPRODUCT(ISNUMBER(R2:R16)*ISTEXT(X2:X16)*(R2:R16<>X2:X16))+SUMPRODUCT(ISTEXT(R2:R16)*ISNUMBER(X2:X16)*(R2:R16<>X2:X16))+SUMPRODUCT(ISTEXT(R2:R16)*ISTEXT(X2:X16)*(R2:R16<>X2:X16))+SUMPRODUCT(ISNUMBER(R2:R16)*ISNUMBER(X2:X16)*(R2:R16<>X2:X16))","v":0},{"$f":"SUMPRODUCT(ISNUMBER(S2:S16)*ISTEXT(X2:X16)*(S2:S16<>X2:X16))+SUMPRODUCT(ISTEXT(S2:S16)*ISNUMBER(X2:X16)*(S2:S16<>X2:X16))+SUMPRODUCT(ISTEXT(S2:S16)*ISTEXT(X2:X16)*(S2:S16<>X2:X16))+SUMPRODUCT(ISNUMBER(S2:S16)*ISNUMBER(X2:X16)*(S2:S16<>X2:X16))","v":0},{"$f":"SUMPRODUCT(ISNUMBER(T2:T16)*ISTEXT(X2:X16)*(T2:T16<>X2:X16))+SUMPRODUCT(ISTEXT(T2:T16)*ISNUMBER(X2:X16)*(T2:T16<>X2:X16))+SUMPRODUCT(ISTEXT(T2:T16)*ISTEXT(X2:X16)*(T2:T16<>X2:X16))+SUMPRODUCT(ISNUMBER(T2:T16)*ISNUMBER(X2:X16)*(T2:T16<>X2:X16))","v":0},{"$f":"SUMPRODUCT(ISNUMBER(U2:U16)*ISTEXT(X2:X16)*(U2:U16<>X2:X16))+SUMPRODUCT(ISTEXT(U2:U16)*ISNUMBER(X2:X16)*(U2:U16<>X2:X16))+SUMPRODUCT(ISTEXT(U2:U16)*ISTEXT(X2:X16)*(U2:U16<>X2:X16))+SUMPRODUCT(ISNUMBER(U2:U16)*ISNUMBER(X2:X16)*(U2:U16<>X2:X16))","v":0},{"$f":"SUMPRODUCT(ISNUMBER(V2:V16)*ISTEXT(X2:X16)*(V2:V16<>X2:X16))+SUMPRODUCT(ISTEXT(V2:V16)*ISNUMBER(X2:X16)*(V2:V16<>X2:X16))+SUMPRODUCT(ISTEXT(V2:V16)*ISTEXT(X2:X16)*(V2:V16<>X2:X16))+SUMPRODUCT(ISNUMBER(V2:V16)*ISNUMBER(X2:X16)*(V2:V16<>X2:X16))","v":0},{"$f":"SUMPRODUCT(ISNUMBER(W2:W16)*ISTEXT(X2:X16)*(W2:W16<>X2:X16))+SUMPRODUCT(ISTEXT(W2:W16)*ISNUMBER(X2:X16)*(W2:W16<>X2:X16))+SUMPRODUCT(ISTEXT(W2:W16)*ISTEXT(X2:X16)*(W2:W16<>X2:X16))+SUMPRODUCT(ISNUMBER(W2:W16)*ISNUMBER(X2:X16)*(W2:W16<>X2:X16))","v":0},{"$f":"SUMPRODUCT(ISNUMBER(M2:M16)*ISTEXT(Y2:Y16)*(M2:M16<>Y2:Y16))+SUMPRODUCT(ISTEXT(M2:M16)*ISNUMBER(Y2:Y16)*(M2:M16<>Y2:Y16))+SUMPRODUCT(ISTEXT(M2:M16)*ISTEXT(Y2:Y16)*(M2:M16<>Y2:Y16))+SUMPRODUCT(ISNUMBER(M2:M16)*ISNUMBER(Y2:Y16)*(M2:M16<>Y2:Y16))","v":0},{"$f":"SUMPRODUCT(ISNUMBER(N2:N16)*ISTEXT(Y2:Y16)*(N2:N16<>Y2:Y16))+SUMPRODUCT(ISTEXT(N2:N16)*ISNUMBER(Y2:Y16)*(N2:N16<>Y2:Y16))+SUMPRODUCT(ISTEXT(N2:N16)*ISTEXT(Y2:Y16)*(N2:N16<>Y2:Y16))+SUMPRODUCT(ISNUMBER(N2:N16)*ISNUMBER(Y2:Y16)*(N2:N16<>Y2:Y16))","v":0},{"$f":"SUMPRODUCT(ISNUMBER(O2:O16)*ISTEXT(Y2:Y16)*(O2:O16<>Y2:Y16))+SUMPRODUCT(ISTEXT(O2:O16)*ISNUMBER(Y2:Y16)*(O2:O16<>Y2:Y16))+SUMPRODUCT(ISTEXT(O2:O16)*ISTEXT(Y2:Y16)*(O2:O16<>Y2:Y16))+SUMPRODUCT(ISNUMBER(O2:O16)*ISNUMBER(Y2:Y16)*(O2:O16<>Y2:Y16))","v":0},{"$f":"SUMPRODUCT(ISNUMBER(P2:P16)*ISTEXT(Y2:Y16)*(P2:P16<>Y2:Y16))+SUMPRODUCT(ISTEXT(P2:P16)*ISNUMBER(Y2:Y16)*(P2:P16<>Y2:Y16))+SUMPRODUCT(ISTEXT(P2:P16)*ISTEXT(Y2:Y16)*(P2:P16<>Y2:Y16))+SUMPRODUCT(ISNUMBER(P2:P16)*ISNUMBER(Y2:Y16)*(P2:P16<>Y2:Y16))","v":0},{"$f":"SUMPRODUCT(ISNUMBER(Q2:Q16)*ISTEXT(Y2:Y16)*(Q2:Q16<>Y2:Y16))+SUMPRODUCT(ISTEXT(Q2:Q16)*ISNUMBER(Y2:Y16)*(Q2:Q16<>Y2:Y16))+SUMPRODUCT(ISTEXT(Q2:Q16)*ISTEXT(Y2:Y16)*(Q2:Q16<>Y2:Y16))+SUMPRODUCT(ISNUMBER(Q2:Q16)*ISNUMBER(Y2:Y16)*(Q2:Q16<>Y2:Y16))","v":0},{"$f":"SUMPRODUCT(ISNUMBER(R2:R16)*ISTEXT(Y2:Y16)*(R2:R16<>Y2:Y16))+SUMPRODUCT(ISTEXT(R2:R16)*ISNUMBER(Y2:Y16)*(R2:R16<>Y2:Y16))+SUMPRODUCT(ISTEXT(R2:R16)*ISTEXT(Y2:Y16)*(R2:R16<>Y2:Y16))+SUMPRODUCT(ISNUMBER(R2:R16)*ISNUMBER(Y2:Y16)*(R2:R16<>Y2:Y16))","v":0},{"$f":"SUMPRODUCT(ISNUMBER(S2:S16)*ISTEXT(Y2:Y16)*(S2:S16<>Y2:Y16))+SUMPRODUCT(ISTEXT(S2:S16)*ISNUMBER(Y2:Y16)*(S2:S16<>Y2:Y16))+SUMPRODUCT(ISTEXT(S2:S16)*ISTEXT(Y2:Y16)*(S2:S16<>Y2:Y16))+SUMPRODUCT(ISNUMBER(S2:S16)*ISNUMBER(Y2:Y16)*(S2:S16<>Y2:Y16))","v":0},{"$f":"SUMPRODUCT(ISNUMBER(T2:T16)*ISTEXT(Y2:Y16)*(T2:T16<>Y2:Y16))+SUMPRODUCT(ISTEXT(T2:T16)*ISNUMBER(Y2:Y16)*(T2:T16<>Y2:Y16))+SUMPRODUCT(ISTEXT(T2:T16)*ISTEXT(Y2:Y16)*(T2:T16<>Y2:Y16))+SUMPRODUCT(ISNUMBER(T2:T16)*ISNUMBER(Y2:Y16)*(T2:T16<>Y2:Y16))","v":0},{"$f":"SUMPRODUCT(ISNUMBER(U2:U16)*ISTEXT(Y2:Y16)*(U2:U16<>Y2:Y16))+SUMPRODUCT(ISTEXT(U2:U16)*ISNUMBER(Y2:Y16)*(U2:U16<>Y2:Y16))+SUMPRODUCT(ISTEXT(U2:U16)*ISTEXT(Y2:Y16)*(U2:U16<>Y2:Y16))+SUMPRODUCT(ISNUMBER(U2:U16)*ISNUMBER(Y2:Y16)*(U2:U16<>Y2:Y16))","v":0},{"$f":"SUMPRODUCT(ISNUMBER(V2:V16)*ISTEXT(Y2:Y16)*(V2:V16<>Y2:Y16))+SUMPRODUCT(ISTEXT(V2:V16)*ISNUMBER(Y2:Y16)*(V2:V16<>Y2:Y16))+SUMPRODUCT(ISTEXT(V2:V16)*ISTEXT(Y2:Y16)*(V2:V16<>Y2:Y16))+SUMPRODUCT(ISNUMBER(V2:V16)*ISNUMBER(Y2:Y16)*(V2:V16<>Y2:Y16))","v":0}]
[9,null,null,null,null,null,null,null,null,null,null,null,null,null,null,null,null,null,null,null,null,null,null,null,null,null,null,null,null,null,null,null,null,null,null,null,null,null,null,null,null,null,null,null,null,null,null,null,null,null,null,"11-13","12-13","1-14","2-14","3-14","4-14","5-14","6-14","7-14","8-14","9-14","10-14","11-14","12-14","13-14","1-15","2-15","3-15","4-15"]
[10,null,null,null,null,null,null,null,null,null,null,null,null,null,null,null,null,null,null,null,null,null,null,null,null,null,null,null,null,null,null,null,null,null,null,null,null,null,null,null,null,null,null,null,null,null,null,null,null,null,null,{"$f":"SUMPRODUCT(ISNUMBER(W2:W16)*ISTEXT(Y2:Y16)*(W2:W16<>Y2:Y16))+SUMPRODUCT(ISTEXT(W2:W16)*ISNUMBER(Y2:Y16)*(W2:W16<>Y2:Y16))+SUMPRODUCT(ISTEXT(W2:W16)*ISTEXT(Y2:Y16)*(W2:W16<>Y2:Y16))+SUMPRODUCT(ISNUMBER(W2:W16)*ISNUMBER(Y2:Y16)*(W2:W16<>Y2:Y16))","v":0},{"$f":"SUMPRODUCT(ISNUMBER(X2:X16)*ISTEXT(Y2:Y16)*(X2:X16<>Y2:Y16))+SUMPRODUCT(ISTEXT(X2:X16)*ISNUMBER(Y2:Y16)*(X2:X16<>Y2:Y16))+SUMPRODUCT(ISTEXT(X2:X16)*ISTEXT(Y2:Y16)*(X2:X16<>Y2:Y16))+SUMPRODUCT(ISNUMBER(X2:X16)*ISNUMBER(Y2:Y16)*(X2:X16<>Y2:Y16))","v":0},{"$f":"SUMPRODUCT(ISNUMBER(M2:M16)*ISTEXT(Z2:Z16)*(M2:M16<>Z2:Z16))+SUMPRODUCT(ISTEXT(M2:M16)*ISNUMBER(Z2:Z16)*(M2:M16<>Z2:Z16))+SUMPRODUCT(ISTEXT(M2:M16)*ISTEXT(Z2:Z16)*(M2:M16<>Z2:Z16))+SUMPRODUCT(ISNUMBER(M2:M16)*ISNUMBER(Z2:Z16)*(M2:M16<>Z2:Z16))","v":0},{"$f":"SUMPRODUCT(ISNUMBER(N2:N16)*ISTEXT(Z2:Z16)*(N2:N16<>Z2:Z16))+SUMPRODUCT(ISTEXT(N2:N16)*ISNUMBER(Z2:Z16)*(N2:N16<>Z2:Z16))+SUMPRODUCT(ISTEXT(N2:N16)*ISTEXT(Z2:Z16)*(N2:N16<>Z2:Z16))+SUMPRODUCT(ISNUMBER(N2:N16)*ISNUMBER(Z2:Z16)*(N2:N16<>Z2:Z16))","v":0},{"$f":"SUMPRODUCT(ISNUMBER(O2:O16)*ISTEXT(Z2:Z16)*(O2:O16<>Z2:Z16))+SUMPRODUCT(ISTEXT(O2:O16)*ISNUMBER(Z2:Z16)*(O2:O16<>Z2:Z16))+SUMPRODUCT(ISTEXT(O2:O16)*ISTEXT(Z2:Z16)*(O2:O16<>Z2:Z16))+SUMPRODUCT(ISNUMBER(O2:O16)*ISNUMBER(Z2:Z16)*(O2:O16<>Z2:Z16))","v":0},{"$f":"SUMPRODUCT(ISNUMBER(P2:P16)*ISTEXT(Z2:Z16)*(P2:P16<>Z2:Z16))+SUMPRODUCT(ISTEXT(P2:P16)*ISNUMBER(Z2:Z16)*(P2:P16<>Z2:Z16))+SUMPRODUCT(ISTEXT(P2:P16)*ISTEXT(Z2:Z16)*(P2:P16<>Z2:Z16))+SUMPRODUCT(ISNUMBER(P2:P16)*ISNUMBER(Z2:Z16)*(P2:P16<>Z2:Z16))","v":0},{"$f":"SUMPRODUCT(ISNUMBER(Q2:Q16)*ISTEXT(Z2:Z16)*(Q2:Q16<>Z2:Z16))+SUMPRODUCT(ISTEXT(Q2:Q16)*ISNUMBER(Z2:Z16)*(Q2:Q16<>Z2:Z16))+SUMPRODUCT(ISTEXT(Q2:Q16)*ISTEXT(Z2:Z16)*(Q2:Q16<>Z2:Z16))+SUMPRODUCT(ISNUMBER(Q2:Q16)*ISNUMBER(Z2:Z16)*(Q2:Q16<>Z2:Z16))","v":0},{"$f":"SUMPRODUCT(ISNUMBER(R2:R16)*ISTEXT(Z2:Z16)*(R2:R16<>Z2:Z16))+SUMPRODUCT(ISTEXT(R2:R16)*ISNUMBER(Z2:Z16)*(R2:R16<>Z2:Z16))+SUMPRODUCT(ISTEXT(R2:R16)*ISTEXT(Z2:Z16)*(R2:R16<>Z2:Z16))+SUMPRODUCT(ISNUMBER(R2:R16)*ISNUMBER(Z2:Z16)*(R2:R16<>Z2:Z16))","v":0},{"$f":"SUMPRODUCT(ISNUMBER(S2:S16)*ISTEXT(Z2:Z16)*(S2:S16<>Z2:Z16))+SUMPRODUCT(ISTEXT(S2:S16)*ISNUMBER(Z2:Z16)*(S2:S16<>Z2:Z16))+SUMPRODUCT(ISTEXT(S2:S16)*ISTEXT(Z2:Z16)*(S2:S16<>Z2:Z16))+SUMPRODUCT(ISNUMBER(S2:S16)*ISNUMBER(Z2:Z16)*(S2:S16<>Z2:Z16))","v":0},{"$f":"SUMPRODUCT(ISNUMBER(T2:T16)*ISTEXT(Z2:Z16)*(T2:T16<>Z2:Z16))+SUMPRODUCT(ISTEXT(T2:T16)*ISNUMBER(Z2:Z16)*(T2:T16<>Z2:Z16))+SUMPRODUCT(ISTEXT(T2:T16)*ISTEXT(Z2:Z16)*(T2:T16<>Z2:Z16))+SUMPRODUCT(ISNUMBER(T2:T16)*ISNUMBER(Z2:Z16)*(T2:T16<>Z2:Z16))","v":0},{"$f":"SUMPRODUCT(ISNUMBER(U2:U16)*ISTEXT(Z2:Z16)*(U2:U16<>Z2:Z16))+SUMPRODUCT(ISTEXT(U2:U16)*ISNUMBER(Z2:Z16)*(U2:U16<>Z2:Z16))+SUMPRODUCT(ISTEXT(U2:U16)*ISTEXT(Z2:Z16)*(U2:U16<>Z2:Z16))+SUMPRODUCT(ISNUMBER(U2:U16)*ISNUMBER(Z2:Z16)*(U2:U16<>Z2:Z16))","v":0},{"$f":"SUMPRODUCT(ISNUMBER(V2:V16)*ISTEXT(Z2:Z16)*(V2:V16<>Z2:Z16))+SUMPRODUCT(ISTEXT(V2:V16)*ISNUMBER(Z2:Z16)*(V2:V16<>Z2:Z16))+SUMPRODUCT(ISTEXT(V2:V16)*ISTEXT(Z2:Z16)*(V2:V16<>Z2:Z16))+SUMPRODUCT(ISNUMBER(V2:V16)*ISNUMBER(Z2:Z16)*(V2:V16<>Z2:Z16))","v":0},{"$f":"SUMPRODUCT(ISNUMBER(W2:W16)*ISTEXT(Z2:Z16)*(W2:W16<>Z2:Z16))+SUMPRODUCT(ISTEXT(W2:W16)*ISNUMBER(Z2:Z16)*(W2:W16<>Z2:Z16))+SUMPRODUCT(ISTEXT(W2:W16)*ISTEXT(Z2:Z16)*(W2:W16<>Z2:Z16))+SUMPRODUCT(ISNUMBER(W2:W16)*ISNUMBER(Z2:Z16)*(W2:W16<>Z2:Z16))","v":0},{"$f":"SUMPRODUCT(ISNUMBER(X2:X16)*ISTEXT(Z2:Z16)*(X2:X16<>Z2:Z16))+SUMPRODUCT(ISTEXT(X2:X16)*ISNUMBER(Z2:Z16)*(X2:X16<>Z2:Z16))+SUMPRODUCT(ISTEXT(X2:X16)*ISTEXT(Z2:Z16)*(X2:X16<>Z2:Z16))+SUMPRODUCT(ISNUMBER(X2:X16)*ISNUMBER(Z2:Z16)*(X2:X16<>Z2:Z16))","v":0},{"$f":"SUMPRODUCT(ISNUMBER(Y2:Y16)*ISTEXT(Z2:Z16)*(Y2:Y16<>Z2:Z16))+SUMPRODUCT(ISTEXT(Y2:Y16)*ISNUMBER(Z2:Z16)*(Y2:Y16<>Z2:Z16))+SUMPRODUCT(ISTEXT(Y2:Y16)*ISTEXT(Z2:Z16)*(Y2:Y16<>Z2:Z16))+SUMPRODUCT(ISNUMBER(Y2:Y16)*ISNUMBER(Z2:Z16)*(Y2:Y16<>Z2:Z16))","v":0},{"$f":"SUMPRODUCT(ISNUMBER(M2:M16)*ISTEXT(AA2:AA16)*(M2:M16<>AA2:AA16))+SUMPRODUCT(ISTEXT(M2:M16)*ISNUMBER(AA2:AA16)*(M2:M16<>AA2:AA16))+SUMPRODUCT(ISTEXT(M2:M16)*ISTEXT(AA2:AA16)*(M2:M16<>AA2:AA16))+SUMPRODUCT(ISNUMBER(M2:M16)*ISNUMBER(AA2:AA16)*(M2:M16<>AA2:AA16))","v":0},{"$f":"SUMPRODUCT(ISNUMBER(N2:N16)*ISTEXT(AA2:AA16)*(N2:N16<>AA2:AA16))+SUMPRODUCT(ISTEXT(N2:N16)*ISNUMBER(AA2:AA16)*(N2:N16<>AA2:AA16))+SUMPRODUCT(ISTEXT(N2:N16)*ISTEXT(AA2:AA16)*(N2:N16<>AA2:AA16))+SUMPRODUCT(ISNUMBER(N2:N16)*ISNUMBER(AA2:AA16)*(N2:N16<>AA2:AA16))","v":0},{"$f":"SUMPRODUCT(ISNUMBER(O2:O16)*ISTEXT(AA2:AA16)*(O2:O16<>AA2:AA16))+SUMPRODUCT(ISTEXT(O2:O16)*ISNUMBER(AA2:AA16)*(O2:O16<>AA2:AA16))+SUMPRODUCT(ISTEXT(O2:O16)*ISTEXT(AA2:AA16)*(O2:O16<>AA2:AA16))+SUMPRODUCT(ISNUMBER(O2:O16)*ISNUMBER(AA2:AA16)*(O2:O16<>AA2:AA16))","v":0},{"$f":"SUMPRODUCT(ISNUMBER(P2:P16)*ISTEXT(AA2:AA16)*(P2:P16<>AA2:AA16))+SUMPRODUCT(ISTEXT(P2:P16)*ISNUMBER(AA2:AA16)*(P2:P16<>AA2:AA16))+SUMPRODUCT(ISTEXT(P2:P16)*ISTEXT(AA2:AA16)*(P2:P16<>AA2:AA16))+SUMPRODUCT(ISNUMBER(P2:P16)*ISNUMBER(AA2:AA16)*(P2:P16<>AA2:AA16))","v":0}]
[11,null,null,null,null,null,null,null,null,null,null,null,null,null,null,null,null,null,null,null,null,null,null,null,null,null,null,null,null,null,null,null,null,null,null,null,null,null,null,null,null,null,null,null,null,null,null,null,null,null,null,"5-15","6-15","7-15","8-15","9-15","10-15","11-15","12-15","13-15","14-15","1-16","2-16","3-16","4-16","5-16","6-16","7-16","8-16","9-16"]
[12,null,null,null,null,null,null,null,null,null,null,null,null,null,null,null,null,null,null,null,null,null,null,null,null,null,null,null,null,null,null,null,null,null,null,null,null,null,null,null,null,null,null,null,null,null,null,null,null,null,null,{"$f":"SUMPRODUCT(ISNUMBER(Q2:Q16)*ISTEXT(AA2:AA16)*(Q2:Q16<>AA2:AA16))+SUMPRODUCT(ISTEXT(Q2:Q16)*ISNUMBER(AA2:AA16)*(Q2:Q16<>AA2:AA16))+SUMPRODUCT(ISTEXT(Q2:Q16)*ISTEXT(AA2:AA16)*(Q2:Q16<>AA2:AA16))+SUMPRODUCT(ISNUMBER(Q2:Q16)*ISNUMBER(AA2:AA16)*(Q2:Q16<>AA2:AA16))","v":0},{"$f":"SUMPRODUCT(ISNUMBER(R2:R16)*ISTEXT(AA2:AA16)*(R2:R16<>AA2:AA16))+SUMPRODUCT(ISTEXT(R2:R16)*ISNUMBER(AA2:AA16)*(R2:R16<>AA2:AA16))+SUMPRODUCT(ISTEXT(R2:R16)*ISTEXT(AA2:AA16)*(R2:R16<>AA2:AA16))+SUMPRODUCT(ISNUMBER(R2:R16)*ISNUMBER(AA2:AA16)*(R2:R16<>AA2:AA16))","v":0},{"$f":"SUMPRODUCT(ISNUMBER(S2:S16)*ISTEXT(AA2:AA16)*(S2:S16<>AA2:AA16))+SUMPRODUCT(ISTEXT(S2:S16)*ISNUMBER(AA2:AA16)*(S2:S16<>AA2:AA16))+SUMPRODUCT(ISTEXT(S2:S16)*ISTEXT(AA2:AA16)*(S2:S16<>AA2:AA16))+SUMPRODUCT(ISNUMBER(S2:S16)*ISNUMBER(AA2:AA16)*(S2:S16<>AA2:AA16))","v":0},{"$f":"SUMPRODUCT(ISNUMBER(T2:T16)*ISTEXT(AA2:AA16)*(T2:T16<>AA2:AA16))+SUMPRODUCT(ISTEXT(T2:T16)*ISNUMBER(AA2:AA16)*(T2:T16<>AA2:AA16))+SUMPRODUCT(ISTEXT(T2:T16)*ISTEXT(AA2:AA16)*(T2:T16<>AA2:AA16))+SUMPRODUCT(ISNUMBER(T2:T16)*ISNUMBER(AA2:AA16)*(T2:T16<>AA2:AA16))","v":0},{"$f":"SUMPRODUCT(ISNUMBER(U2:U16)*ISTEXT(AA2:AA16)*(U2:U16<>AA2:AA16))+SUMPRODUCT(ISTEXT(U2:U16)*ISNUMBER(AA2:AA16)*(U2:U16<>AA2:AA16))+SUMPRODUCT(ISTEXT(U2:U16)*ISTEXT(AA2:AA16)*(U2:U16<>AA2:AA16))+SUMPRODUCT(ISNUMBER(U2:U16)*ISNUMBER(AA2:AA16)*(U2:U16<>AA2:AA16))","v":0},{"$f":"SUMPRODUCT(ISNUMBER(V2:V16)*ISTEXT(AA2:AA16)*(V2:V16<>AA2:AA16))+SUMPRODUCT(ISTEXT(V2:V16)*ISNUMBER(AA2:AA16)*(V2:V16<>AA2:AA16))+SUMPRODUCT(ISTEXT(V2:V16)*ISTEXT(AA2:AA16)*(V2:V16<>AA2:AA16))+SUMPRODUCT(ISNUMBER(V2:V16)*ISNUMBER(AA2:AA16)*(V2:V16<>AA2:AA16))","v":0},{"$f":"SUMPRODUCT(ISNUMBER(W2:W16)*ISTEXT(AA2:AA16)*(W2:W16<>AA2:AA16))+SUMPRODUCT(ISTEXT(W2:W16)*ISNUMBER(AA2:AA16)*(W2:W16<>AA2:AA16))+SUMPRODUCT(ISTEXT(W2:W16)*ISTEXT(AA2:AA16)*(W2:W16<>AA2:AA16))+SUMPRODUCT(ISNUMBER(W2:W16)*ISNUMBER(AA2:AA16)*(W2:W16<>AA2:AA16))","v":0},{"$f":"SUMPRODUCT(ISNUMBER(X2:X16)*ISTEXT(AA2:AA16)*(X2:X16<>AA2:AA16))+SUMPRODUCT(ISTEXT(X2:X16)*ISNUMBER(AA2:AA16)*(X2:X16<>AA2:AA16))+SUMPRODUCT(ISTEXT(X2:X16)*ISTEXT(AA2:AA16)*(X2:X16<>AA2:AA16))+SUMPRODUCT(ISNUMBER(X2:X16)*ISNUMBER(AA2:AA16)*(X2:X16<>AA2:AA16))","v":0},{"$f":"SUMPRODUCT(ISNUMBER(Y2:Y16)*ISTEXT(AA2:AA16)*(Y2:Y16<>AA2:AA16))+SUMPRODUCT(ISTEXT(Y2:Y16)*ISNUMBER(AA2:AA16)*(Y2:Y16<>AA2:AA16))+SUMPRODUCT(ISTEXT(Y2:Y16)*ISTEXT(AA2:AA16)*(Y2:Y16<>AA2:AA16))+SUMPRODUCT(ISNUMBER(Y2:Y16)*ISNUMBER(AA2:AA16)*(Y2:Y16<>AA2:AA16))","v":0},{"$f":"SUMPRODUCT(ISNUMBER(Z2:Z16)*ISTEXT(AA2:AA16)*(Z2:Z16<>AA2:AA16))+SUMPRODUCT(ISTEXT(Z2:Z16)*ISNUMBER(AA2:AA16)*(Z2:Z16<>AA2:AA16))+SUMPRODUCT(ISTEXT(Z2:Z16)*ISTEXT(AA2:AA16)*(Z2:Z16<>AA2:AA16))+SUMPRODUCT(ISNUMBER(Z2:Z16)*ISNUMBER(AA2:AA16)*(Z2:Z16<>AA2:AA16))","v":0},{"$f":"SUMPRODUCT(ISNUMBER(M2:M16)*ISTEXT(AB2:AB16)*(M2:M16<>AB2:AB16))+SUMPRODUCT(ISTEXT(M2:M16)*ISNUMBER(AB2:AB16)*(M2:M16<>AB2:AB16))+SUMPRODUCT(ISTEXT(M2:M16)*ISTEXT(AB2:AB16)*(M2:M16<>AB2:AB16))+SUMPRODUCT(ISNUMBER(M2:M16)*ISNUMBER(AB2:AB16)*(M2:M16<>AB2:AB16))","v":0},{"$f":"SUMPRODUCT(ISNUMBER(N2:N16)*ISTEXT(AB2:AB16)*(N2:N16<>AB2:AB16))+SUMPRODUCT(ISTEXT(N2:N16)*ISNUMBER(AB2:AB16)*(N2:N16<>AB2:AB16))+SUMPRODUCT(ISTEXT(N2:N16)*ISTEXT(AB2:AB16)*(N2:N16<>AB2:AB16))+SUMPRODUCT(ISNUMBER(N2:N16)*ISNUMBER(AB2:AB16)*(N2:N16<>AB2:AB16))","v":0},{"$f":"SUMPRODUCT(ISNUMBER(O2:O16)*ISTEXT(AB2:AB16)*(O2:O16<>AB2:AB16))+SUMPRODUCT(ISTEXT(O2:O16)*ISNUMBER(AB2:AB16)*(O2:O16<>AB2:AB16))+SUMPRODUCT(ISTEXT(O2:O16)*ISTEXT(AB2:AB16)*(O2:O16<>AB2:AB16))+SUMPRODUCT(ISNUMBER(O2:O16)*ISNUMBER(AB2:AB16)*(O2:O16<>AB2:AB16))","v":0},{"$f":"SUMPRODUCT(ISNUMBER(P2:P16)*ISTEXT(AB2:AB16)*(P2:P16<>AB2:AB16))+SUMPRODUCT(ISTEXT(P2:P16)*ISNUMBER(AB2:AB16)*(P2:P16<>AB2:AB16))+SUMPRODUCT(ISTEXT(P2:P16)*ISTEXT(AB2:AB16)*(P2:P16<>AB2:AB16))+SUMPRODUCT(ISNUMBER(P2:P16)*ISNUMBER(AB2:AB16)*(P2:P16<>AB2:AB16))","v":0},{"$f":"SUMPRODUCT(ISNUMBER(Q2:Q16)*ISTEXT(AB2:AB16)*(Q2:Q16<>AB2:AB16))+SUMPRODUCT(ISTEXT(Q2:Q16)*ISNUMBER(AB2:AB16)*(Q2:Q16<>AB2:AB16))+SUMPRODUCT(ISTEXT(Q2:Q16)*ISTEXT(AB2:AB16)*(Q2:Q16<>AB2:AB16))+SUMPRODUCT(ISNUMBER(Q2:Q16)*ISNUMBER(AB2:AB16)*(Q2:Q16<>AB2:AB16))","v":0},{"$f":"SUMPRODUCT(ISNUMBER(R2:R16)*ISTEXT(AB2:AB16)*(R2:R16<>AB2:AB16))+SUMPRODUCT(ISTEXT(R2:R16)*ISNUMBER(AB2:AB16)*(R2:R16<>AB2:AB16))+SUMPRODUCT(ISTEXT(R2:R16)*ISTEXT(AB2:AB16)*(R2:R16<>AB2:AB16))+SUMPRODUCT(ISNUMBER(R2:R16)*ISNUMBER(AB2:AB16)*(R2:R16<>AB2:AB16))","v":0},{"$f":"SUMPRODUCT(ISNUMBER(S2:S16)*ISTEXT(AB2:AB16)*(S2:S16<>AB2:AB16))+SUMPRODUCT(ISTEXT(S2:S16)*ISNUMBER(AB2:AB16)*(S2:S16<>AB2:AB16))+SUMPRODUCT(ISTEXT(S2:S16)*ISTEXT(AB2:AB16)*(S2:S16<>AB2:AB16))+SUMPRODUCT(ISNUMBER(S2:S16)*ISNUMBER(AB2:AB16)*(S2:S16<>AB2:AB16))","v":0},{"$f":"SUMPRODUCT(ISNUMBER(T2:T16)*ISTEXT(AB2:AB16)*(T2:T16<>AB2:AB16))+SUMPRODUCT(ISTEXT(T2:T16)*ISNUMBER(AB2:AB16)*(T2:T16<>AB2:AB16))+SUMPRODUCT(ISTEXT(T2:T16)*ISTEXT(AB2:AB16)*(T2:T16<>AB2:AB16))+SUMPRODUCT(ISNUMBER(T2:T16)*ISNUMBER(AB2:AB16)*(T2:T16<>AB2:AB16))","v":0},{"$f":"SUMPRODUCT(ISNUMBER(U2:U16)*ISTEXT(AB2:AB16)*(U2:U16<>AB2:AB16))+SUMPRODUCT(ISTEXT(U2:U16)*ISNUMBER(AB2:AB16)*(U2:U16<>AB2:AB16))+SUMPRODUCT(ISTEXT(U2:U16)*ISTEXT(AB2:AB16)*(U2:U16<>AB2:AB16))+SUMPRODUCT(ISNUMBER(U2:U16)*ISNUMBER(AB2:AB16)*(U2:U16<>AB2:AB16))","v":0}]
[13,null,null,null,null,null,null,null,null,null,null,null,null,null,null,null,null,null,null,null,null,null,null,null,null,null,null,null,null,null,null,null,null,null,null,null,null,null,null,null,null,null,null,null,null,null,null,null,null,null,null,"10-16","11-16","12-16","13-16","14-16","15-16","1-17","2-17","3-17","4-17","5-17","6-17","7-17","8-17","9-17","10-17","11-17","12-17","13-17"]
[14,null,null,null,null,null,null,null,null,null,null,null,null,null,null,null,null,null,null,null,null,null,null,null,null,null,null,null,null,null,null,null,null,null,null,null,null,null,null,null,null,null,null,null,null,null,null,null,null,null,null,{"$f":"SUMPRODUCT(ISNUMBER(V2:V16)*ISTEXT(AB2:AB16)*(V2:V16<>AB2:AB16))+SUMPRODUCT(ISTEXT(V2:V16)*ISNUMBER(AB2:AB16)*(V2:V16<>AB2:AB16))+SUMPRODUCT(ISTEXT(V2:V16)*ISTEXT(AB2:AB16)*(V2:V16<>AB2:AB16))+SUMPRODUCT(ISNUMBER(V2:V16)*ISNUMBER(AB2:AB16)*(V2:V16<>AB2:AB16))","v":0},{"$f":"SUMPRODUCT(ISNUMBER(W2:W16)*ISTEXT(AB2:AB16)*(W2:W16<>AB2:AB16))+SUMPRODUCT(ISTEXT(W2:W16)*ISNUMBER(AB2:AB16)*(W2:W16<>AB2:AB16))+SUMPRODUCT(ISTEXT(W2:W16)*ISTEXT(AB2:AB16)*(W2:W16<>AB2:AB16))+SUMPRODUCT(ISNUMBER(W2:W16)*ISNUMBER(AB2:AB16)*(W2:W16<>AB2:AB16))","v":0},{"$f":"SUMPRODUCT(ISNUMBER(X2:X16)*ISTEXT(AB2:AB16)*(X2:X16<>AB2:AB16))+SUMPRODUCT(ISTEXT(X2:X16)*ISNUMBER(AB2:AB16)*(X2:X16<>AB2:AB16))+SUMPRODUCT(ISTEXT(X2:X16)*ISTEXT(AB2:AB16)*(X2:X16<>AB2:AB16))+SUMPRODUCT(ISNUMBER(X2:X16)*ISNUMBER(AB2:AB16)*(X2:X16<>AB2:AB16))","v":0},{"$f":"SUMPRODUCT(ISNUMBER(Y2:Y16)*ISTEXT(AB2:AB16)*(Y2:Y16<>AB2:AB16))+SUMPRODUCT(ISTEXT(Y2:Y16)*ISNUMBER(AB2:AB16)*(Y2:Y16<>AB2:AB16))+SUMPRODUCT(ISTEXT(Y2:Y16)*ISTEXT(AB2:AB16)*(Y2:Y16<>AB2:AB16))+SUMPRODUCT(ISNUMBER(Y2:Y16)*ISNUMBER(AB2:AB16)*(Y2:Y16<>AB2:AB16))","v":0},{"$f":"SUMPRODUCT(ISNUMBER(Z2:Z16)*ISTEXT(AB2:AB16)*(Z2:Z16<>AB2:AB16))+SUMPRODUCT(ISTEXT(Z2:Z16)*ISNUMBER(AB2:AB16)*(Z2:Z16<>AB2:AB16))+SUMPRODUCT(ISTEXT(Z2:Z16)*ISTEXT(AB2:AB16)*(Z2:Z16<>AB2:AB16))+SUMPRODUCT(ISNUMBER(Z2:Z16)*ISNUMBER(AB2:AB16)*(Z2:Z16<>AB2:AB16))","v":0},{"$f":"SUMPRODUCT(ISNUMBER(AA2:AA16)*ISTEXT(AB2:AB16)*(AA2:AA16<>AB2:AB16))+SUMPRODUCT(ISTEXT(AA2:AA16)*ISNUMBER(AB2:AB16)*(AA2:AA16<>AB2:AB16))+SUMPRODUCT(ISTEXT(AA2:AA16)*ISTEXT(AB2:AB16)*(AA2:AA16<>AB2:AB16))+SUMPRODUCT(ISNUMBER(AA2:AA16)*ISNUMBER(AB2:AB16)*(AA2:AA16<>AB2:AB16))","v":0},{"$f":"SUMPRODUCT(ISNUMBER(M2:M16)*ISTEXT(AC2:AC16)*(M2:M16<>AC2:AC16))+SUMPRODUCT(ISTEXT(M2:M16)*ISNUMBER(AC2:AC16)*(M2:M16<>AC2:AC16))+SUMPRODUCT(ISTEXT(M2:M16)*ISTEXT(AC2:AC16)*(M2:M16<>AC2:AC16))+SUMPRODUCT(ISNUMBER(M2:M16)*ISNUMBER(AC2:AC16)*(M2:M16<>AC2:AC16))","v":0},{"$f":"SUMPRODUCT(ISNUMBER(N2:N16)*ISTEXT(AC2:AC16)*(N2:N16<>AC2:AC16))+SUMPRODUCT(ISTEXT(N2:N16)*ISNUMBER(AC2:AC16)*(N2:N16<>AC2:AC16))+SUMPRODUCT(ISTEXT(N2:N16)*ISTEXT(AC2:AC16)*(N2:N16<>AC2:AC16))+SUMPRODUCT(ISNUMBER(N2:N16)*ISNUMBER(AC2:AC16)*(N2:N16<>AC2:AC16))","v":0},{"$f":"SUMPRODUCT(ISNUMBER(O2:O16)*ISTEXT(AC2:AC16)*(O2:O16<>AC2:AC16))+SUMPRODUCT(ISTEXT(O2:O16)*ISNUMBER(AC2:AC16)*(O2:O16<>AC2:AC16))+SUMPRODUCT(ISTEXT(O2:O16)*ISTEXT(AC2:AC16)*(O2:O16<>AC2:AC16))+SUMPRODUCT(ISNUMBER(O2:O16)*ISNUMBER(AC2:AC16)*(O2:O16<>AC2:AC16))","v":0},{"$f":"SUMPRODUCT(ISNUMBER(P2:P16)*ISTEXT(AC2:AC16)*(P2:P16<>AC2:AC16))+SUMPRODUCT(ISTEXT(P2:P16)*ISNUMBER(AC2:AC16)*(P2:P16<>AC2:AC16))+SUMPRODUCT(ISTEXT(P2:P16)*ISTEXT(AC2:AC16)*(P2:P16<>AC2:AC16))+SUMPRODUCT(ISNUMBER(P2:P16)*ISNUMBER(AC2:AC16)*(P2:P16<>AC2:AC16))","v":0},{"$f":"SUMPRODUCT(ISNUMBER(Q2:Q16)*ISTEXT(AC2:AC16)*(Q2:Q16<>AC2:AC16))+SUMPRODUCT(ISTEXT(Q2:Q16)*ISNUMBER(AC2:AC16)*(Q2:Q16<>AC2:AC16))+SUMPRODUCT(ISTEXT(Q2:Q16)*ISTEXT(AC2:AC16)*(Q2:Q16<>AC2:AC16))+SUMPRODUCT(ISNUMBER(Q2:Q16)*ISNUMBER(AC2:AC16)*(Q2:Q16<>AC2:AC16))","v":0},{"$f":"SUMPRODUCT(ISNUMBER(R2:R16)*ISTEXT(AC2:AC16)*(R2:R16<>AC2:AC16))+SUMPRODUCT(ISTEXT(R2:R16)*ISNUMBER(AC2:AC16)*(R2:R16<>AC2:AC16))+SUMPRODUCT(ISTEXT(R2:R16)*ISTEXT(AC2:AC16)*(R2:R16<>AC2:AC16))+SUMPRODUCT(ISNUMBER(R2:R16)*ISNUMBER(AC2:AC16)*(R2:R16<>AC2:AC16))","v":0},{"$f":"SUMPRODUCT(ISNUMBER(S2:S16)*ISTEXT(AC2:AC16)*(S2:S16<>AC2:AC16))+SUMPRODUCT(ISTEXT(S2:S16)*ISNUMBER(AC2:AC16)*(S2:S16<>AC2:AC16))+SUMPRODUCT(ISTEXT(S2:S16)*ISTEXT(AC2:AC16)*(S2:S16<>AC2:AC16))+SUMPRODUCT(ISNUMBER(S2:S16)*ISNUMBER(AC2:AC16)*(S2:S16<>AC2:AC16))","v":0},{"$f":"SUMPRODUCT(ISNUMBER(T2:T16)*ISTEXT(AC2:AC16)*(T2:T16<>AC2:AC16))+SUMPRODUCT(ISTEXT(T2:T16)*ISNUMBER(AC2:AC16)*(T2:T16<>AC2:AC16))+SUMPRODUCT(ISTEXT(T2:T16)*ISTEXT(AC2:AC16)*(T2:T16<>AC2:AC16))+SUMPRODUCT(ISNUMBER(T2:T16)*ISNUMBER(AC2:AC16)*(T2:T16<>AC2:AC16))","v":0},{"$f":"SUMPRODUCT(ISNUMBER(U2:U16)*ISTEXT(AC2:AC16)*(U2:U16<>AC2:AC16))+SUMPRODUCT(ISTEXT(U2:U16)*ISNUMBER(AC2:AC16)*(U2:U16<>AC2:AC16))+SUMPRODUCT(ISTEXT(U2:U16)*ISTEXT(AC2:AC16)*(U2:U16<>AC2:AC16))+SUMPRODUCT(ISNUMBER(U2:U16)*ISNUMBER(AC2:AC16)*(U2:U16<>AC2:AC16))","v":0},{"$f":"SUMPRODUCT(ISNUMBER(V2:V16)*ISTEXT(AC2:AC16)*(V2:V16<>AC2:AC16))+SUMPRODUCT(ISTEXT(V2:V16)*ISNUMBER(AC2:AC16)*(V2:V16<>AC2:AC16))+SUMPRODUCT(ISTEXT(V2:V16)*ISTEXT(AC2:AC16)*(V2:V16<>AC2:AC16))+SUMPRODUCT(ISNUMBER(V2:V16)*ISNUMBER(AC2:AC16)*(V2:V16<>AC2:AC16))","v":0},{"$f":"SUMPRODUCT(ISNUMBER(W2:W16)*ISTEXT(AC2:AC16)*(W2:W16<>AC2:AC16))+SUMPRODUCT(ISTEXT(W2:W16)*ISNUMBER(AC2:AC16)*(W2:W16<>AC2:AC16))+SUMPRODUCT(ISTEXT(W2:W16)*ISTEXT(AC2:AC16)*(W2:W16<>AC2:AC16))+SUMPRODUCT(ISNUMBER(W2:W16)*ISNUMBER(AC2:AC16)*(W2:W16<>AC2:AC16))","v":0},{"$f":"SUMPRODUCT(ISNUMBER(X2:X16)*ISTEXT(AC2:AC16)*(X2:X16<>AC2:AC16))+SUMPRODUCT(ISTEXT(X2:X16)*ISNUMBER(AC2:AC16)*(X2:X16<>AC2:AC16))+SUMPRODUCT(ISTEXT(X2:X16)*ISTEXT(AC2:AC16)*(X2:X16<>AC2:AC16))+SUMPRODUCT(ISNUMBER(X2:X16)*ISNUMBER(AC2:AC16)*(X2:X16<>AC2:AC16))","v":0},{"$f":"SUMPRODUCT(ISNUMBER(Y2:Y16)*ISTEXT(AC2:AC16)*(Y2:Y16<>AC2:AC16))+SUMPRODUCT(ISTEXT(Y2:Y16)*ISNUMBER(AC2:AC16)*(Y2:Y16<>AC2:AC16))+SUMPRODUCT(ISTEXT(Y2:Y16)*ISTEXT(AC2:AC16)*(Y2:Y16<>AC2:AC16))+SUMPRODUCT(ISNUMBER(Y2:Y16)*ISNUMBER(AC2:AC16)*(Y2:Y16<>AC2:AC16))","v":0}]
[15,null,null,null,null,null,null,null,null,null,null,null,null,null,null,null,null,null,null,null,null,null,null,null,null,null,null,null,null,null,null,null,null,null,null,null,null,null,null,null,null,null,null,null,null,null,null,null,null,null,null,"14-17","15-17","16-17","1-18","2-18","3-18","4-18","5-18","6-18","7-18","8-18","9-18","10-18","11-18","12-18","13-18","14-18","15-18","16-18"]
[null,null,null,null,null,null,null,null,null,null,null,null,null,null,null,null,null,null,null,null,null,null,null,null,null,null,null,null,null,null,null,null,null,null,null,null,null,null,null,null,null,null,null,null,null,null,null,null,null,null,null,{"$f":"SUMPRODUCT(ISNUMBER(Z2:Z16)*ISTEXT(AC2:AC16)*(Z2:Z16<>AC2:AC16))+SUMPRODUCT(ISTEXT(Z2:Z16)*ISNUMBER(AC2:AC16)*(Z2:Z16<>AC2:AC16))+SUMPRODUCT(ISTEXT(Z2:Z16)*ISTEXT(AC2:AC16)*(Z2:Z16<>AC2:AC16))+SUMPRODUCT(ISNUMBER(Z2:Z16)*ISNUMBER(AC2:AC16)*(Z2:Z16<>AC2:AC16))","v":0},{"$f":"SUMPRODUCT(ISNUMBER(AA2:AA16)*ISTEXT(AC2:AC16)*(AA2:AA16<>AC2:AC16))+SUMPRODUCT(ISTEXT(AA2:AA16)*ISNUMBER(AC2:AC16)*(AA2:AA16<>AC2:AC16))+SUMPRODUCT(ISTEXT(AA2:AA16)*ISTEXT(AC2:AC16)*(AA2:AA16<>AC2:AC16))+SUMPRODUCT(ISNUMBER(AA2:AA16)*ISNUMBER(AC2:AC16)*(AA2:AA16<>AC2:AC16))","v":0},{"$f":"SUMPRODUCT(ISNUMBER(AB2:AB16)*ISTEXT(AC2:AC16)*(AB2:AB16<>AC2:AC16))+SUMPRODUCT(ISTEXT(AB2:AB16)*ISNUMBER(AC2:AC16)*(AB2:AB16<>AC2:AC16))+SUMPRODUCT(ISTEXT(AB2:AB16)*ISTEXT(AC2:AC16)*(AB2:AB16<>AC2:AC16))+SUMPRODUCT(ISNUMBER(AB2:AB16)*ISNUMBER(AC2:AC16)*(AB2:AB16<>AC2:AC16))","v":0},{"$f":"SUMPRODUCT(ISNUMBER(M2:M16)*ISTEXT(AD2:AD16)*(M2:M16<>AD2:AD16))+SUMPRODUCT(ISTEXT(M2:M16)*ISNUMBER(AD2:AD16)*(M2:M16<>AD2:AD16))+SUMPRODUCT(ISTEXT(M2:M16)*ISTEXT(AD2:AD16)*(M2:M16<>AD2:AD16))+SUMPRODUCT(ISNUMBER(M2:M16)*ISNUMBER(AD2:AD16)*(M2:M16<>AD2:AD16))","v":0},{"$f":"SUMPRODUCT(ISNUMBER(N2:N16)*ISTEXT(AD2:AD16)*(N2:N16<>AD2:AD16))+SUMPRODUCT(ISTEXT(N2:N16)*ISNUMBER(AD2:AD16)*(N2:N16<>AD2:AD16))+SUMPRODUCT(ISTEXT(N2:N16)*ISTEXT(AD2:AD16)*(N2:N16<>AD2:AD16))+SUMPRODUCT(ISNUMBER(N2:N16)*ISNUMBER(AD2:AD16)*(N2:N16<>AD2:AD16))","v":0},{"$f":"SUMPRODUCT(ISNUMBER(O2:O16)*ISTEXT(AD2:AD16)*(O2:O16<>AD2:AD16))+SUMPRODUCT(ISTEXT(O2:O16)*ISNUMBER(AD2:AD16)*(O2:O16<>AD2:AD16))+SUMPRODUCT(ISTEXT(O2:O16)*ISTEXT(AD2:AD16)*(O2:O16<>AD2:AD16))+SUMPRODUCT(ISNUMBER(O2:O16)*ISNUMBER(AD2:AD16)*(O2:O16<>AD2:AD16))","v":0},{"$f":"SUMPRODUCT(ISNUMBER(P2:P16)*ISTEXT(AD2:AD16)*(P2:P16<>AD2:AD16))+SUMPRODUCT(ISTEXT(P2:P16)*ISNUMBER(AD2:AD16)*(P2:P16<>AD2:AD16))+SUMPRODUCT(ISTEXT(P2:P16)*ISTEXT(AD2:AD16)*(P2:P16<>AD2:AD16))+SUMPRODUCT(ISNUMBER(P2:P16)*ISNUMBER(AD2:AD16)*(P2:P16<>AD2:AD16))","v":0},{"$f":"SUMPRODUCT(ISNUMBER(Q2:Q16)*ISTEXT(AD2:AD16)*(Q2:Q16<>AD2:AD16))+SUMPRODUCT(ISTEXT(Q2:Q16)*ISNUMBER(AD2:AD16)*(Q2:Q16<>AD2:AD16))+SUMPRODUCT(ISTEXT(Q2:Q16)*ISTEXT(AD2:AD16)*(Q2:Q16<>AD2:AD16))+SUMPRODUCT(ISNUMBER(Q2:Q16)*ISNUMBER(AD2:AD16)*(Q2:Q16<>AD2:AD16))","v":0},{"$f":"SUMPRODUCT(ISNUMBER(R2:R16)*ISTEXT(AD2:AD16)*(R2:R16<>AD2:AD16))+SUMPRODUCT(ISTEXT(R2:R16)*ISNUMBER(AD2:AD16)*(R2:R16<>AD2:AD16))+SUMPRODUCT(ISTEXT(R2:R16)*ISTEXT(AD2:AD16)*(R2:R16<>AD2:AD16))+SUMPRODUCT(ISNUMBER(R2:R16)*ISNUMBER(AD2:AD16)*(R2:R16<>AD2:AD16))","v":0},{"$f":"SUMPRODUCT(ISNUMBER(S2:S16)*ISTEXT(AD2:AD16)*(S2:S16<>AD2:AD16))+SUMPRODUCT(ISTEXT(S2:S16)*ISNUMBER(AD2:AD16)*(S2:S16<>AD2:AD16))+SUMPRODUCT(ISTEXT(S2:S16)*ISTEXT(AD2:AD16)*(S2:S16<>AD2:AD16))+SUMPRODUCT(ISNUMBER(S2:S16)*ISNUMBER(AD2:AD16)*(S2:S16<>AD2:AD16))","v":0},{"$f":"SUMPRODUCT(ISNUMBER(T2:T16)*ISTEXT(AD2:AD16)*(T2:T16<>AD2:AD16))+SUMPRODUCT(ISTEXT(T2:T16)*ISNUMBER(AD2:AD16)*(T2:T16<>AD2:AD16))+SUMPRODUCT(ISTEXT(T2:T16)*ISTEXT(AD2:AD16)*(T2:T16<>AD2:AD16))+SUMPRODUCT(ISNUMBER(T2:T16)*ISNUMBER(AD2:AD16)*(T2:T16<>AD2:AD16))","v":0},{"$f":"SUMPRODUCT(ISNUMBER(U2:U16)*ISTEXT(AD2:AD16)*(U2:U16<>AD2:AD16))+SUMPRODUCT(ISTEXT(U2:U16)*ISNUMBER(AD2:AD16)*(U2:U16<>AD2:AD16))+SUMPRODUCT(ISTEXT(U2:U16)*ISTEXT(AD2:AD16)*(U2:U16<>AD2:AD16))+SUMPRODUCT(ISNUMBER(U2:U16)*ISNUMBER(AD2:AD16)*(U2:U16<>AD2:AD16))","v":0},{"$f":"SUMPRODUCT(ISNUMBER(V2:V16)*ISTEXT(AD2:AD16)*(V2:V16<>AD2:AD16))+SUMPRODUCT(ISTEXT(V2:V16)*ISNUMBER(AD2:AD16)*(V2:V16<>AD2:AD16))+SUMPRODUCT(ISTEXT(V2:V16)*ISTEXT(AD2:AD16)*(V2:V16<>AD2:AD16))+SUMPRODUCT(ISNUMBER(V2:V16)*ISNUMBER(AD2:AD16)*(V2:V16<>AD2:AD16))","v":0},{"$f":"SUMPRODUCT(ISNUMBER(W2:W16)*ISTEXT(AD2:AD16)*(W2:W16<>AD2:AD16))+SUMPRODUCT(ISTEXT(W2:W16)*ISNUMBER(AD2:AD16)*(W2:W16<>AD2:AD16))+SUMPRODUCT(ISTEXT(W2:W16)*ISTEXT(AD2:AD16)*(W2:W16<>AD2:AD16))+SUMPRODUCT(ISNUMBER(W2:W16)*ISNUMBER(AD2:AD16)*(W2:W16<>AD2:AD16))","v":0},{"$f":"SUMPRODUCT(ISNUMBER(X2:X16)*ISTEXT(AD2:AD16)*(X2:X16<>AD2:AD16))+SUMPRODUCT(ISTEXT(X2:X16)*ISNUMBER(AD2:AD16)*(X2:X16<>AD2:AD16))+SUMPRODUCT(ISTEXT(X2:X16)*ISTEXT(AD2:AD16)*(X2:X16<>AD2:AD16))+SUMPRODUCT(ISNUMBER(X2:X16)*ISNUMBER(AD2:AD16)*(X2:X16<>AD2:AD16))","v":0},{"$f":"SUMPRODUCT(ISNUMBER(Y2:Y16)*ISTEXT(AD2:AD16)*(Y2:Y16<>AD2:AD16))+SUMPRODUCT(ISTEXT(Y2:Y16)*ISNUMBER(AD2:AD16)*(Y2:Y16<>AD2:AD16))+SUMPRODUCT(ISTEXT(Y2:Y16)*ISTEXT(AD2:AD16)*(Y2:Y16<>AD2:AD16))+SUMPRODUCT(ISNUMBER(Y2:Y16)*ISNUMBER(AD2:AD16)*(Y2:Y16<>AD2:AD16))","v":0},{"$f":"SUMPRODUCT(ISNUMBER(Z2:Z16)*ISTEXT(AD2:AD16)*(Z2:Z16<>AD2:AD16))+SUMPRODUCT(ISTEXT(Z2:Z16)*ISNUMBER(AD2:AD16)*(Z2:Z16<>AD2:AD16))+SUMPRODUCT(ISTEXT(Z2:Z16)*ISTEXT(AD2:AD16)*(Z2:Z16<>AD2:AD16))+SUMPRODUCT(ISNUMBER(Z2:Z16)*ISNUMBER(AD2:AD16)*(Z2:Z16<>AD2:AD16))","v":0},{"$f":"SUMPRODUCT(ISNUMBER(AA2:AA16)*ISTEXT(AD2:AD16)*(AA2:AA16<>AD2:AD16))+SUMPRODUCT(ISTEXT(AA2:AA16)*ISNUMBER(AD2:AD16)*(AA2:AA16<>AD2:AD16))+SUMPRODUCT(ISTEXT(AA2:AA16)*ISTEXT(AD2:AD16)*(AA2:AA16<>AD2:AD16))+SUMPRODUCT(ISNUMBER(AA2:AA16)*ISNUMBER(AD2:AD16)*(AA2:AA16<>AD2:AD16))","v":0},{"$f":"SUMPRODUCT(ISNUMBER(AB2:AB16)*ISTEXT(AD2:AD16)*(AB2:AB16<>AD2:AD16))+SUMPRODUCT(ISTEXT(AB2:AB16)*ISNUMBER(AD2:AD16)*(AB2:AB16<>AD2:AD16))+SUMPRODUCT(ISTEXT(AB2:AB16)*ISTEXT(AD2:AD16)*(AB2:AB16<>AD2:AD16))+SUMPRODUCT(ISNUMBER(AB2:AB16)*ISNUMBER(AD2:AD16)*(AB2:AB16<>AD2:AD16))","v":0}]
[null,null,null,null,null,null,null,null,null,null,null,null,null,null,null,null,null,null,null,null,null,null,null,null,null,null,null,null,null,null,null,null,null,null,null,null,null,null,null,null,null,null,null,null,null,null,null,null,null,null,null,"17-18","1-19","2-19","3-19","4-19","5-19","6-19","7-19","8-19","9-19","10-19","11-19","12-19","13-19","14-19","15-19","16-19","17-19","18-19"]
[null,null,null,null,null,null,null,null,null,null,null,null,null,null,null,null,null,null,null,null,null,null,null,null,null,null,null,null,null,null,null,null,null,null,null,null,null,null,null,null,null,null,null,null,null,null,null,null,null,null,null,{"$f":"SUMPRODUCT(ISNUMBER(AC2:AC16)*ISTEXT(AD2:AD16)*(AC2:AC16<>AD2:AD16))+SUMPRODUCT(ISTEXT(AC2:AC16)*ISNUMBER(AD2:AD16)*(AC2:AC16<>AD2:AD16))+SUMPRODUCT(ISTEXT(AC2:AC16)*ISTEXT(AD2:AD16)*(AC2:AC16<>AD2:AD16))+SUMPRODUCT(ISNUMBER(AC2:AC16)*ISNUMBER(AD2:AD16)*(AC2:AC16<>AD2:AD16))","v":0},{"$f":"SUMPRODUCT(ISNUMBER(M2:M16)*ISTEXT(AE2:AE16)*(M2:M16<>AE2:AE16))+SUMPRODUCT(ISTEXT(M2:M16)*ISNUMBER(AE2:AE16)*(M2:M16<>AE2:AE16))+SUMPRODUCT(ISTEXT(M2:M16)*ISTEXT(AE2:AE16)*(M2:M16<>AE2:AE16))+SUMPRODUCT(ISNUMBER(M2:M16)*ISNUMBER(AE2:AE16)*(M2:M16<>AE2:AE16))","v":0},{"$f":"SUMPRODUCT(ISNUMBER(N2:N16)*ISTEXT(AE2:AE16)*(N2:N16<>AE2:AE16))+SUMPRODUCT(ISTEXT(N2:N16)*ISNUMBER(AE2:AE16)*(N2:N16<>AE2:AE16))+SUMPRODUCT(ISTEXT(N2:N16)*ISTEXT(AE2:AE16)*(N2:N16<>AE2:AE16))+SUMPRODUCT(ISNUMBER(N2:N16)*ISNUMBER(AE2:AE16)*(N2:N16<>AE2:AE16))","v":0},{"$f":"SUMPRODUCT(ISNUMBER(O2:O16)*ISTEXT(AE2:AE16)*(O2:O16<>AE2:AE16))+SUMPRODUCT(ISTEXT(O2:O16)*ISNUMBER(AE2:AE16)*(O2:O16<>AE2:AE16))+SUMPRODUCT(ISTEXT(O2:O16)*ISTEXT(AE2:AE16)*(O2:O16<>AE2:AE16))+SUMPRODUCT(ISNUMBER(O2:O16)*ISNUMBER(AE2:AE16)*(O2:O16<>AE2:AE16))","v":0},{"$f":"SUMPRODUCT(ISNUMBER(P2:P16)*ISTEXT(AE2:AE16)*(P2:P16<>AE2:AE16))+SUMPRODUCT(ISTEXT(P2:P16)*ISNUMBER(AE2:AE16)*(P2:P16<>AE2:AE16))+SUMPRODUCT(ISTEXT(P2:P16)*ISTEXT(AE2:AE16)*(P2:P16<>AE2:AE16))+SUMPRODUCT(ISNUMBER(P2:P16)*ISNUMBER(AE2:AE16)*(P2:P16<>AE2:AE16))","v":0},{"$f":"SUMPRODUCT(ISNUMBER(Q2:Q16)*ISTEXT(AE2:AE16)*(Q2:Q16<>AE2:AE16))+SUMPRODUCT(ISTEXT(Q2:Q16)*ISNUMBER(AE2:AE16)*(Q2:Q16<>AE2:AE16))+SUMPRODUCT(ISTEXT(Q2:Q16)*ISTEXT(AE2:AE16)*(Q2:Q16<>AE2:AE16))+SUMPRODUCT(ISNUMBER(Q2:Q16)*ISNUMBER(AE2:AE16)*(Q2:Q16<>AE2:AE16))","v":0},{"$f":"SUMPRODUCT(ISNUMBER(R2:R16)*ISTEXT(AE2:AE16)*(R2:R16<>AE2:AE16))+SUMPRODUCT(ISTEXT(R2:R16)*ISNUMBER(AE2:AE16)*(R2:R16<>AE2:AE16))+SUMPRODUCT(ISTEXT(R2:R16)*ISTEXT(AE2:AE16)*(R2:R16<>AE2:AE16))+SUMPRODUCT(ISNUMBER(R2:R16)*ISNUMBER(AE2:AE16)*(R2:R16<>AE2:AE16))","v":0},{"$f":"SUMPRODUCT(ISNUMBER(S2:S16)*ISTEXT(AE2:AE16)*(S2:S16<>AE2:AE16))+SUMPRODUCT(ISTEXT(S2:S16)*ISNUMBER(AE2:AE16)*(S2:S16<>AE2:AE16))+SUMPRODUCT(ISTEXT(S2:S16)*ISTEXT(AE2:AE16)*(S2:S16<>AE2:AE16))+SUMPRODUCT(ISNUMBER(S2:S16)*ISNUMBER(AE2:AE16)*(S2:S16<>AE2:AE16))","v":0},{"$f":"SUMPRODUCT(ISNUMBER(T2:T16)*ISTEXT(AE2:AE16)*(T2:T16<>AE2:AE16))+SUMPRODUCT(ISTEXT(T2:T16)*ISNUMBER(AE2:AE16)*(T2:T16<>AE2:AE16))+SUMPRODUCT(ISTEXT(T2:T16)*ISTEXT(AE2:AE16)*(T2:T16<>AE2:AE16))+SUMPRODUCT(ISNUMBER(T2:T16)*ISNUMBER(AE2:AE16)*(T2:T16<>AE2:AE16))","v":0},{"$f":"SUMPRODUCT(ISNUMBER(U2:U16)*ISTEXT(AE2:AE16)*(U2:U16<>AE2:AE16))+SUMPRODUCT(ISTEXT(U2:U16)*ISNUMBER(AE2:AE16)*(U2:U16<>AE2:AE16))+SUMPRODUCT(ISTEXT(U2:U16)*ISTEXT(AE2:AE16)*(U2:U16<>AE2:AE16))+SUMPRODUCT(ISNUMBER(U2:U16)*ISNUMBER(AE2:AE16)*(U2:U16<>AE2:AE16))","v":0},{"$f":"SUMPRODUCT(ISNUMBER(V2:V16)*ISTEXT(AE2:AE16)*(V2:V16<>AE2:AE16))+SUMPRODUCT(ISTEXT(V2:V16)*ISNUMBER(AE2:AE16)*(V2:V16<>AE2:AE16))+SUMPRODUCT(ISTEXT(V2:V16)*ISTEXT(AE2:AE16)*(V2:V16<>AE2:AE16))+SUMPRODUCT(ISNUMBER(V2:V16)*ISNUMBER(AE2:AE16)*(V2:V16<>AE2:AE16))","v":0},{"$f":"SUMPRODUCT(ISNUMBER(W2:W16)*ISTEXT(AE2:AE16)*(W2:W16<>AE2:AE16))+SUMPRODUCT(ISTEXT(W2:W16)*ISNUMBER(AE2:AE16)*(W2:W16<>AE2:AE16))+SUMPRODUCT(ISTEXT(W2:W16)*ISTEXT(AE2:AE16)*(W2:W16<>AE2:AE16))+SUMPRODUCT(ISNUMBER(W2:W16)*ISNUMBER(AE2:AE16)*(W2:W16<>AE2:AE16))","v":0},{"$f":"SUMPRODUCT(ISNUMBER(X2:X16)*ISTEXT(AE2:AE16)*(X2:X16<>AE2:AE16))+SUMPRODUCT(ISTEXT(X2:X16)*ISNUMBER(AE2:AE16)*(X2:X16<>AE2:AE16))+SUMPRODUCT(ISTEXT(X2:X16)*ISTEXT(AE2:AE16)*(X2:X16<>AE2:AE16))+SUMPRODUCT(ISNUMBER(X2:X16)*ISNUMBER(AE2:AE16)*(X2:X16<>AE2:AE16))","v":0},{"$f":"SUMPRODUCT(ISNUMBER(Y2:Y16)*ISTEXT(AE2:AE16)*(Y2:Y16<>AE2:AE16))+SUMPRODUCT(ISTEXT(Y2:Y16)*ISNUMBER(AE2:AE16)*(Y2:Y16<>AE2:AE16))+SUMPRODUCT(ISTEXT(Y2:Y16)*ISTEXT(AE2:AE16)*(Y2:Y16<>AE2:AE16))+SUMPRODUCT(ISNUMBER(Y2:Y16)*ISNUMBER(AE2:AE16)*(Y2:Y16<>AE2:AE16))","v":0},{"$f":"SUMPRODUCT(ISNUMBER(Z2:Z16)*ISTEXT(AE2:AE16)*(Z2:Z16<>AE2:AE16))+SUMPRODUCT(ISTEXT(Z2:Z16)*ISNUMBER(AE2:AE16)*(Z2:Z16<>AE2:AE16))+SUMPRODUCT(ISTEXT(Z2:Z16)*ISTEXT(AE2:AE16)*(Z2:Z16<>AE2:AE16))+SUMPRODUCT(ISNUMBER(Z2:Z16)*ISNUMBER(AE2:AE16)*(Z2:Z16<>AE2:AE16))","v":0},{"$f":"SUMPRODUCT(ISNUMBER(AA2:AA16)*ISTEXT(AE2:AE16)*(AA2:AA16<>AE2:AE16))+SUMPRODUCT(ISTEXT(AA2:AA16)*ISNUMBER(AE2:AE16)*(AA2:AA16<>AE2:AE16))+SUMPRODUCT(ISTEXT(AA2:AA16)*ISTEXT(AE2:AE16)*(AA2:AA16<>AE2:AE16))+SUMPRODUCT(ISNUMBER(AA2:AA16)*ISNUMBER(AE2:AE16)*(AA2:AA16<>AE2:AE16))","v":0},{"$f":"SUMPRODUCT(ISNUMBER(AB2:AB16)*ISTEXT(AE2:AE16)*(AB2:AB16<>AE2:AE16))+SUMPRODUCT(ISTEXT(AB2:AB16)*ISNUMBER(AE2:AE16)*(AB2:AB16<>AE2:AE16))+SUMPRODUCT(ISTEXT(AB2:AB16)*ISTEXT(AE2:AE16)*(AB2:AB16<>AE2:AE16))+SUMPRODUCT(ISNUMBER(AB2:AB16)*ISNUMBER(AE2:AE16)*(AB2:AB16<>AE2:AE16))","v":0},{"$f":"SUMPRODUCT(ISNUMBER(AC2:AC16)*ISTEXT(AE2:AE16)*(AC2:AC16<>AE2:AE16))+SUMPRODUCT(ISTEXT(AC2:AC16)*ISNUMBER(AE2:AE16)*(AC2:AC16<>AE2:AE16))+SUMPRODUCT(ISTEXT(AC2:AC16)*ISTEXT(AE2:AE16)*(AC2:AC16<>AE2:AE16))+SUMPRODUCT(ISNUMBER(AC2:AC16)*ISNUMBER(AE2:AE16)*(AC2:AC16<>AE2:AE16))","v":0},{"$f":"SUMPRODUCT(ISNUMBER(AD2:AD16)*ISTEXT(AE2:AE16)*(AD2:AD16<>AE2:AE16))+SUMPRODUCT(ISTEXT(AD2:AD16)*ISNUMBER(AE2:AE16)*(AD2:AD16<>AE2:AE16))+SUMPRODUCT(ISTEXT(AD2:AD16)*ISTEXT(AE2:AE16)*(AD2:AD16<>AE2:AE16))+SUMPRODUCT(ISNUMBER(AD2:AD16)*ISNUMBER(AE2:AE16)*(AD2:AD16<>AE2:AE16))","v":0}]
[null,null,null,null,null,null,null,null,null,null,null,null,null,null,null,null,null,null,null,null,null,null,null,null,null,null,null,null,null,null,null,null,null,null,null,null,null,null,null,null,null,null,null,null,null,null,null,null,null,null,null,"1-20","2-20","3-20","4-20","5-20","6-20","7-20","8-20","9-20","10-20","11-20","12-20","13-20","14-20","15-20","16-20","17-20","18-20","19-20"]
[null,null,null,null,null,null,null,null,null,null,null,null,null,null,null,null,null,null,null,null,null,null,null,null,null,null,null,null,null,null,null,null,null,null,null,null,null,null,null,null,null,null,null,null,null,null,null,null,null,null,null,{"$f":"SUMPRODUCT(ISNUMBER(M2:M16)*ISTEXT(AF2:AF16)*(M2:M16<>AF2:AF16))+SUMPRODUCT(ISTEXT(M2:M16)*ISNUMBER(AF2:AF16)*(M2:M16<>AF2:AF16))+SUMPRODUCT(ISTEXT(M2:M16)*ISTEXT(AF2:AF16)*(M2:M16<>AF2:AF16))+SUMPRODUCT(ISNUMBER(M2:M16)*ISNUMBER(AF2:AF16)*(M2:M16<>AF2:AF16))","v":0},{"$f":"SUMPRODUCT(ISNUMBER(N2:N16)*ISTEXT(AF2:AF16)*(N2:N16<>AF2:AF16))+SUMPRODUCT(ISTEXT(N2:N16)*ISNUMBER(AF2:AF16)*(N2:N16<>AF2:AF16))+SUMPRODUCT(ISTEXT(N2:N16)*ISTEXT(AF2:AF16)*(N2:N16<>AF2:AF16))+SUMPRODUCT(ISNUMBER(N2:N16)*ISNUMBER(AF2:AF16)*(N2:N16<>AF2:AF16))","v":0},{"$f":"SUMPRODUCT(ISNUMBER(O2:O16)*ISTEXT(AF2:AF16)*(O2:O16<>AF2:AF16))+SUMPRODUCT(ISTEXT(O2:O16)*ISNUMBER(AF2:AF16)*(O2:O16<>AF2:AF16))+SUMPRODUCT(ISTEXT(O2:O16)*ISTEXT(AF2:AF16)*(O2:O16<>AF2:AF16))+SUMPRODUCT(ISNUMBER(O2:O16)*ISNUMBER(AF2:AF16)*(O2:O16<>AF2:AF16))","v":0},{"$f":"SUMPRODUCT(ISNUMBER(P2:P16)*ISTEXT(AF2:AF16)*(P2:P16<>AF2:AF16))+SUMPRODUCT(ISTEXT(P2:P16)*ISNUMBER(AF2:AF16)*(P2:P16<>AF2:AF16))+SUMPRODUCT(ISTEXT(P2:P16)*ISTEXT(AF2:AF16)*(P2:P16<>AF2:AF16))+SUMPRODUCT(ISNUMBER(P2:P16)*ISNUMBER(AF2:AF16)*(P2:P16<>AF2:AF16))","v":0},{"$f":"SUMPRODUCT(ISNUMBER(Q2:Q16)*ISTEXT(AF2:AF16)*(Q2:Q16<>AF2:AF16))+SUMPRODUCT(ISTEXT(Q2:Q16)*ISNUMBER(AF2:AF16)*(Q2:Q16<>AF2:AF16))+SUMPRODUCT(ISTEXT(Q2:Q16)*ISTEXT(AF2:AF16)*(Q2:Q16<>AF2:AF16))+SUMPRODUCT(ISNUMBER(Q2:Q16)*ISNUMBER(AF2:AF16)*(Q2:Q16<>AF2:AF16))","v":0},{"$f":"SUMPRODUCT(ISNUMBER(R2:R16)*ISTEXT(AF2:AF16)*(R2:R16<>AF2:AF16))+SUMPRODUCT(ISTEXT(R2:R16)*ISNUMBER(AF2:AF16)*(R2:R16<>AF2:AF16))+SUMPRODUCT(ISTEXT(R2:R16)*ISTEXT(AF2:AF16)*(R2:R16<>AF2:AF16))+SUMPRODUCT(ISNUMBER(R2:R16)*ISNUMBER(AF2:AF16)*(R2:R16<>AF2:AF16))","v":0},{"$f":"SUMPRODUCT(ISNUMBER(S2:S16)*ISTEXT(AF2:AF16)*(S2:S16<>AF2:AF16))+SUMPRODUCT(ISTEXT(S2:S16)*ISNUMBER(AF2:AF16)*(S2:S16<>AF2:AF16))+SUMPRODUCT(ISTEXT(S2:S16)*ISTEXT(AF2:AF16)*(S2:S16<>AF2:AF16))+SUMPRODUCT(ISNUMBER(S2:S16)*ISNUMBER(AF2:AF16)*(S2:S16<>AF2:AF16))","v":0},{"$f":"SUMPRODUCT(ISNUMBER(T2:T16)*ISTEXT(AF2:AF16)*(T2:T16<>AF2:AF16))+SUMPRODUCT(ISTEXT(T2:T16)*ISNUMBER(AF2:AF16)*(T2:T16<>AF2:AF16))+SUMPRODUCT(ISTEXT(T2:T16)*ISTEXT(AF2:AF16)*(T2:T16<>AF2:AF16))+SUMPRODUCT(ISNUMBER(T2:T16)*ISNUMBER(AF2:AF16)*(T2:T16<>AF2:AF16))","v":0},{"$f":"SUMPRODUCT(ISNUMBER(U2:U16)*ISTEXT(AF2:AF16)*(U2:U16<>AF2:AF16))+SUMPRODUCT(ISTEXT(U2:U16)*ISNUMBER(AF2:AF16)*(U2:U16<>AF2:AF16))+SUMPRODUCT(ISTEXT(U2:U16)*ISTEXT(AF2:AF16)*(U2:U16<>AF2:AF16))+SUMPRODUCT(ISNUMBER(U2:U16)*ISNUMBER(AF2:AF16)*(U2:U16<>AF2:AF16))","v":0},{"$f":"SUMPRODUCT(ISNUMBER(V2:V16)*ISTEXT(AF2:AF16)*(V2:V16<>AF2:AF16))+SUMPRODUCT(ISTEXT(V2:V16)*ISNUMBER(AF2:AF16)*(V2:V16<>AF2:AF16))+SUMPRODUCT(ISTEXT(V2:V16)*ISTEXT(AF2:AF16)*(V2:V16<>AF2:AF16))+SUMPRODUCT(ISNUMBER(V2:V16)*ISNUMBER(AF2:AF16)*(V2:V16<>AF2:AF16))","v":0},{"$f":"SUMPRODUCT(ISNUMBER(W2:W16)*ISTEXT(AF2:AF16)*(W2:W16<>AF2:AF16))+SUMPRODUCT(ISTEXT(W2:W16)*ISNUMBER(AF2:AF16)*(W2:W16<>AF2:AF16))+SUMPRODUCT(ISTEXT(W2:W16)*ISTEXT(AF2:AF16)*(W2:W16<>AF2:AF16))+SUMPRODUCT(ISNUMBER(W2:W16)*ISNUMBER(AF2:AF16)*(W2:W16<>AF2:AF16))","v":0},{"$f":"SUMPRODUCT(ISNUMBER(X2:X16)*ISTEXT(AF2:AF16)*(X2:X16<>AF2:AF16))+SUMPRODUCT(ISTEXT(X2:X16)*ISNUMBER(AF2:AF16)*(X2:X16<>AF2:AF16))+SUMPRODUCT(ISTEXT(X2:X16)*ISTEXT(AF2:AF16)*(X2:X16<>AF2:AF16))+SUMPRODUCT(ISNUMBER(X2:X16)*ISNUMBER(AF2:AF16)*(X2:X16<>AF2:AF16))","v":0},{"$f":"SUMPRODUCT(ISNUMBER(Y2:Y16)*ISTEXT(AF2:AF16)*(Y2:Y16<>AF2:AF16))+SUMPRODUCT(ISTEXT(Y2:Y16)*ISNUMBER(AF2:AF16)*(Y2:Y16<>AF2:AF16))+SUMPRODUCT(ISTEXT(Y2:Y16)*ISTEXT(AF2:AF16)*(Y2:Y16<>AF2:AF16))+SUMPRODUCT(ISNUMBER(Y2:Y16)*ISNUMBER(AF2:AF16)*(Y2:Y16<>AF2:AF16))","v":0},{"$f":"SUMPRODUCT(ISNUMBER(Z2:Z16)*ISTEXT(AF2:AF16)*(Z2:Z16<>AF2:AF16))+SUMPRODUCT(ISTEXT(Z2:Z16)*ISNUMBER(AF2:AF16)*(Z2:Z16<>AF2:AF16))+SUMPRODUCT(ISTEXT(Z2:Z16)*ISTEXT(AF2:AF16)*(Z2:Z16<>AF2:AF16))+SUMPRODUCT(ISNUMBER(Z2:Z16)*ISNUMBER(AF2:AF16)*(Z2:Z16<>AF2:AF16))","v":0},{"$f":"SUMPRODUCT(ISNUMBER(AA2:AA16)*ISTEXT(AF2:AF16)*(AA2:AA16<>AF2:AF16))+SUMPRODUCT(ISTEXT(AA2:AA16)*ISNUMBER(AF2:AF16)*(AA2:AA16<>AF2:AF16))+SUMPRODUCT(ISTEXT(AA2:AA16)*ISTEXT(AF2:AF16)*(AA2:AA16<>AF2:AF16))+SUMPRODUCT(ISNUMBER(AA2:AA16)*ISNUMBER(AF2:AF16)*(AA2:AA16<>AF2:AF16))","v":0},{"$f":"SUMPRODUCT(ISNUMBER(AB2:AB16)*ISTEXT(AF2:AF16)*(AB2:AB16<>AF2:AF16))+SUMPRODUCT(ISTEXT(AB2:AB16)*ISNUMBER(AF2:AF16)*(AB2:AB16<>AF2:AF16))+SUMPRODUCT(ISTEXT(AB2:AB16)*ISTEXT(AF2:AF16)*(AB2:AB16<>AF2:AF16))+SUMPRODUCT(ISNUMBER(AB2:AB16)*ISNUMBER(AF2:AF16)*(AB2:AB16<>AF2:AF16))","v":0},{"$f":"SUMPRODUCT(ISNUMBER(AC2:AC16)*ISTEXT(AF2:AF16)*(AC2:AC16<>AF2:AF16))+SUMPRODUCT(ISTEXT(AC2:AC16)*ISNUMBER(AF2:AF16)*(AC2:AC16<>AF2:AF16))+SUMPRODUCT(ISTEXT(AC2:AC16)*ISTEXT(AF2:AF16)*(AC2:AC16<>AF2:AF16))+SUMPRODUCT(ISNUMBER(AC2:AC16)*ISNUMBER(AF2:AF16)*(AC2:AC16<>AF2:AF16))","v":0},{"$f":"SUMPRODUCT(ISNUMBER(AD2:AD16)*ISTEXT(AF2:AF16)*(AD2:AD16<>AF2:AF16))+SUMPRODUCT(ISTEXT(AD2:AD16)*ISNUMBER(AF2:AF16)*(AD2:AD16<>AF2:AF16))+SUMPRODUCT(ISTEXT(AD2:AD16)*ISTEXT(AF2:AF16)*(AD2:AD16<>AF2:AF16))+SUMPRODUCT(ISNUMBER(AD2:AD16)*ISNUMBER(AF2:AF16)*(AD2:AD16<>AF2:AF16))","v":0},{"$f":"SUMPRODUCT(ISNUMBER(AE2:AE16)*ISTEXT(AF2:AF16)*(AE2:AE16<>AF2:AF16))+SUMPRODUCT(ISTEXT(AE2:AE16)*ISNUMBER(AF2:AF16)*(AE2:AE16<>AF2:AF16))+SUMPRODUCT(ISTEXT(AE2:AE16)*ISTEXT(AF2:AF16)*(AE2:AE16<>AF2:AF16))+SUMPRODUCT(ISNUMBER(AE2:AE16)*ISNUMBER(AF2:AF16)*(AE2:AE16<>AF2:AF16))","v":0}]
[null,null,null,null,null,null,null,null,null,null,null,null,null,null,null,null,null,null,null,null,null,null,null,null,null,null,null,null,null,null,null,null,null,null,null,null,null,null,null,null,null,null,null,null,null,null,null,null,null,null,null,"1-21","2-21","3-21","4-21","5-21","6-21","7-21","8-21","9-21","10-21","11-21","12-21","13-21","14-21","15-21","16-21","17-21","18-21","19-21"]
[null,null,null,null,null,null,null,null,null,null,null,null,null,null,null,null,null,null,null,null,null,null,null,null,null,null,null,null,null,null,null,null,null,null,null,null,null,null,null,null,null,null,null,null,null,null,null,null,null,null,null,{"$f":"SUMPRODUCT(ISNUMBER(M2:M16)*ISTEXT(AG2:AG16)*(M2:M16<>AG2:AG16))+SUMPRODUCT(ISTEXT(M2:M16)*ISNUMBER(AG2:AG16)*(M2:M16<>AG2:AG16))+SUMPRODUCT(ISTEXT(M2:M16)*ISTEXT(AG2:AG16)*(M2:M16<>AG2:AG16))+SUMPRODUCT(ISNUMBER(M2:M16)*ISNUMBER(AG2:AG16)*(M2:M16<>AG2:AG16))","v":0},{"$f":"SUMPRODUCT(ISNUMBER(N2:N16)*ISTEXT(AG2:AG16)*(N2:N16<>AG2:AG16))+SUMPRODUCT(ISTEXT(N2:N16)*ISNUMBER(AG2:AG16)*(N2:N16<>AG2:AG16))+SUMPRODUCT(ISTEXT(N2:N16)*ISTEXT(AG2:AG16)*(N2:N16<>AG2:AG16))+SUMPRODUCT(ISNUMBER(N2:N16)*ISNUMBER(AG2:AG16)*(N2:N16<>AG2:AG16))","v":0},{"$f":"SUMPRODUCT(ISNUMBER(O2:O16)*ISTEXT(AG2:AG16)*(O2:O16<>AG2:AG16))+SUMPRODUCT(ISTEXT(O2:O16)*ISNUMBER(AG2:AG16)*(O2:O16<>AG2:AG16))+SUMPRODUCT(ISTEXT(O2:O16)*ISTEXT(AG2:AG16)*(O2:O16<>AG2:AG16))+SUMPRODUCT(ISNUMBER(O2:O16)*ISNUMBER(AG2:AG16)*(O2:O16<>AG2:AG16))","v":0},{"$f":"SUMPRODUCT(ISNUMBER(P2:P16)*ISTEXT(AG2:AG16)*(P2:P16<>AG2:AG16))+SUMPRODUCT(ISTEXT(P2:P16)*ISNUMBER(AG2:AG16)*(P2:P16<>AG2:AG16))+SUMPRODUCT(ISTEXT(P2:P16)*ISTEXT(AG2:AG16)*(P2:P16<>AG2:AG16))+SUMPRODUCT(ISNUMBER(P2:P16)*ISNUMBER(AG2:AG16)*(P2:P16<>AG2:AG16))","v":0},{"$f":"SUMPRODUCT(ISNUMBER(Q2:Q16)*ISTEXT(AG2:AG16)*(Q2:Q16<>AG2:AG16))+SUMPRODUCT(ISTEXT(Q2:Q16)*ISNUMBER(AG2:AG16)*(Q2:Q16<>AG2:AG16))+SUMPRODUCT(ISTEXT(Q2:Q16)*ISTEXT(AG2:AG16)*(Q2:Q16<>AG2:AG16))+SUMPRODUCT(ISNUMBER(Q2:Q16)*ISNUMBER(AG2:AG16)*(Q2:Q16<>AG2:AG16))","v":0},{"$f":"SUMPRODUCT(ISNUMBER(R2:R16)*ISTEXT(AG2:AG16)*(R2:R16<>AG2:AG16))+SUMPRODUCT(ISTEXT(R2:R16)*ISNUMBER(AG2:AG16)*(R2:R16<>AG2:AG16))+SUMPRODUCT(ISTEXT(R2:R16)*ISTEXT(AG2:AG16)*(R2:R16<>AG2:AG16))+SUMPRODUCT(ISNUMBER(R2:R16)*ISNUMBER(AG2:AG16)*(R2:R16<>AG2:AG16))","v":0},{"$f":"SUMPRODUCT(ISNUMBER(S2:S16)*ISTEXT(AG2:AG16)*(S2:S16<>AG2:AG16))+SUMPRODUCT(ISTEXT(S2:S16)*ISNUMBER(AG2:AG16)*(S2:S16<>AG2:AG16))+SUMPRODUCT(ISTEXT(S2:S16)*ISTEXT(AG2:AG16)*(S2:S16<>AG2:AG16))+SUMPRODUCT(ISNUMBER(S2:S16)*ISNUMBER(AG2:AG16)*(S2:S16<>AG2:AG16))","v":0},{"$f":"SUMPRODUCT(ISNUMBER(T2:T16)*ISTEXT(AG2:AG16)*(T2:T16<>AG2:AG16))+SUMPRODUCT(ISTEXT(T2:T16)*ISNUMBER(AG2:AG16)*(T2:T16<>AG2:AG16))+SUMPRODUCT(ISTEXT(T2:T16)*ISTEXT(AG2:AG16)*(T2:T16<>AG2:AG16))+SUMPRODUCT(ISNUMBER(T2:T16)*ISNUMBER(AG2:AG16)*(T2:T16<>AG2:AG16))","v":0},{"$f":"SUMPRODUCT(ISNUMBER(U2:U16)*ISTEXT(AG2:AG16)*(U2:U16<>AG2:AG16))+SUMPRODUCT(ISTEXT(U2:U16)*ISNUMBER(AG2:AG16)*(U2:U16<>AG2:AG16))+SUMPRODUCT(ISTEXT(U2:U16)*ISTEXT(AG2:AG16)*(U2:U16<>AG2:AG16))+SUMPRODUCT(ISNUMBER(U2:U16)*ISNUMBER(AG2:AG16)*(U2:U16<>AG2:AG16))","v":0},{"$f":"SUMPRODUCT(ISNUMBER(V2:V16)*ISTEXT(AG2:AG16)*(V2:V16<>AG2:AG16))+SUMPRODUCT(ISTEXT(V2:V16)*ISNUMBER(AG2:AG16)*(V2:V16<>AG2:AG16))+SUMPRODUCT(ISTEXT(V2:V16)*ISTEXT(AG2:AG16)*(V2:V16<>AG2:AG16))+SUMPRODUCT(ISNUMBER(V2:V16)*ISNUMBER(AG2:AG16)*(V2:V16<>AG2:AG16))","v":0},{"$f":"SUMPRODUCT(ISNUMBER(W2:W16)*ISTEXT(AG2:AG16)*(W2:W16<>AG2:AG16))+SUMPRODUCT(ISTEXT(W2:W16)*ISNUMBER(AG2:AG16)*(W2:W16<>AG2:AG16))+SUMPRODUCT(ISTEXT(W2:W16)*ISTEXT(AG2:AG16)*(W2:W16<>AG2:AG16))+SUMPRODUCT(ISNUMBER(W2:W16)*ISNUMBER(AG2:AG16)*(W2:W16<>AG2:AG16))","v":0},{"$f":"SUMPRODUCT(ISNUMBER(X2:X16)*ISTEXT(AG2:AG16)*(X2:X16<>AG2:AG16))+SUMPRODUCT(ISTEXT(X2:X16)*ISNUMBER(AG2:AG16)*(X2:X16<>AG2:AG16))+SUMPRODUCT(ISTEXT(X2:X16)*ISTEXT(AG2:AG16)*(X2:X16<>AG2:AG16))+SUMPRODUCT(ISNUMBER(X2:X16)*ISNUMBER(AG2:AG16)*(X2:X16<>AG2:AG16))","v":0},{"$f":"SUMPRODUCT(ISNUMBER(Y2:Y16)*ISTEXT(AG2:AG16)*(Y2:Y16<>AG2:AG16))+SUMPRODUCT(ISTEXT(Y2:Y16)*ISNUMBER(AG2:AG16)*(Y2:Y16<>AG2:AG16))+SUMPRODUCT(ISTEXT(Y2:Y16)*ISTEXT(AG2:AG16)*(Y2:Y16<>AG2:AG16))+SUMPRODUCT(ISNUMBER(Y2:Y16)*ISNUMBER(AG2:AG16)*(Y2:Y16<>AG2:AG16))","v":0},{"$f":"SUMPRODUCT(ISNUMBER(Z2:Z16)*ISTEXT(AG2:AG16)*(Z2:Z16<>AG2:AG16))+SUMPRODUCT(ISTEXT(Z2:Z16)*ISNUMBER(AG2:AG16)*(Z2:Z16<>AG2:AG16))+SUMPRODUCT(ISTEXT(Z2:Z16)*ISTEXT(AG2:AG16)*(Z2:Z16<>AG2:AG16))+SUMPRODUCT(ISNUMBER(Z2:Z16)*ISNUMBER(AG2:AG16)*(Z2:Z16<>AG2:AG16))","v":0},{"$f":"SUMPRODUCT(ISNUMBER(AA2:AA16)*ISTEXT(AG2:AG16)*(AA2:AA16<>AG2:AG16))+SUMPRODUCT(ISTEXT(AA2:AA16)*ISNUMBER(AG2:AG16)*(AA2:AA16<>AG2:AG16))+SUMPRODUCT(ISTEXT(AA2:AA16)*ISTEXT(AG2:AG16)*(AA2:AA16<>AG2:AG16))+SUMPRODUCT(ISNUMBER(AA2:AA16)*ISNUMBER(AG2:AG16)*(AA2:AA16<>AG2:AG16))","v":0},{"$f":"SUMPRODUCT(ISNUMBER(AB2:AB16)*ISTEXT(AG2:AG16)*(AB2:AB16<>AG2:AG16))+SUMPRODUCT(ISTEXT(AB2:AB16)*ISNUMBER(AG2:AG16)*(AB2:AB16<>AG2:AG16))+SUMPRODUCT(ISTEXT(AB2:AB16)*ISTEXT(AG2:AG16)*(AB2:AB16<>AG2:AG16))+SUMPRODUCT(ISNUMBER(AB2:AB16)*ISNUMBER(AG2:AG16)*(AB2:AB16<>AG2:AG16))","v":0},{"$f":"SUMPRODUCT(ISNUMBER(AC2:AC16)*ISTEXT(AG2:AG16)*(AC2:AC16<>AG2:AG16))+SUMPRODUCT(ISTEXT(AC2:AC16)*ISNUMBER(AG2:AG16)*(AC2:AC16<>AG2:AG16))+SUMPRODUCT(ISTEXT(AC2:AC16)*ISTEXT(AG2:AG16)*(AC2:AC16<>AG2:AG16))+SUMPRODUCT(ISNUMBER(AC2:AC16)*ISNUMBER(AG2:AG16)*(AC2:AC16<>AG2:AG16))","v":0},{"$f":"SUMPRODUCT(ISNUMBER(AD2:AD16)*ISTEXT(AG2:AG16)*(AD2:AD16<>AG2:AG16))+SUMPRODUCT(ISTEXT(AD2:AD16)*ISNUMBER(AG2:AG16)*(AD2:AD16<>AG2:AG16))+SUMPRODUCT(ISTEXT(AD2:AD16)*ISTEXT(AG2:AG16)*(AD2:AD16<>AG2:AG16))+SUMPRODUCT(ISNUMBER(AD2:AD16)*ISNUMBER(AG2:AG16)*(AD2:AD16<>AG2:AG16))","v":0},{"$f":"SUMPRODUCT(ISNUMBER(AE2:AE16)*ISTEXT(AG2:AG16)*(AE2:AE16<>AG2:AG16))+SUMPRODUCT(ISTEXT(AE2:AE16)*ISNUMBER(AG2:AG16)*(AE2:AE16<>AG2:AG16))+SUMPRODUCT(ISTEXT(AE2:AE16)*ISTEXT(AG2:AG16)*(AE2:AE16<>AG2:AG16))+SUMPRODUCT(ISNUMBER(AE2:AE16)*ISNUMBER(AG2:AG16)*(AE2:AE16<>AG2:AG16))","v":0}]
[null,null,null,null,null,null,null,null,null,null,null,null,null,null,null,null,null,null,null,null,null,null,null,null,null,null,null,null,null,null,null,null,null,null,null,null,null,null,null,null,null,null,null,null,null,null,null,null,null,null,null,"20-21","1-22","2-22","3-22","4-22","5-22","6-22","7-22","8-22","9-22","10-22","11-22","12-22","13-22","14-22","15-22","16-22","17-22","18-22"]
[null,null,null,null,null,null,null,null,null,null,null,null,null,null,null,null,null,null,null,null,null,null,null,null,null,null,null,null,null,null,null,null,null,null,null,null,null,null,null,null,null,null,null,null,null,null,null,null,null,null,null,{"$f":"SUMPRODUCT(ISNUMBER(AF2:AF16)*ISTEXT(AG2:AG16)*(AF2:AF16<>AG2:AG16))+SUMPRODUCT(ISTEXT(AF2:AF16)*ISNUMBER(AG2:AG16)*(AF2:AF16<>AG2:AG16))+SUMPRODUCT(ISTEXT(AF2:AF16)*ISTEXT(AG2:AG16)*(AF2:AF16<>AG2:AG16))+SUMPRODUCT(ISNUMBER(AF2:AF16)*ISNUMBER(AG2:AG16)*(AF2:AF16<>AG2:AG16))","v":0},{"$f":"SUMPRODUCT(ISNUMBER(M2:M16)*ISTEXT(AH2:AH16)*(M2:M16<>AH2:AH16))+SUMPRODUCT(ISTEXT(M2:M16)*ISNUMBER(AH2:AH16)*(M2:M16<>AH2:AH16))+SUMPRODUCT(ISTEXT(M2:M16)*ISTEXT(AH2:AH16)*(M2:M16<>AH2:AH16))+SUMPRODUCT(ISNUMBER(M2:M16)*ISNUMBER(AH2:AH16)*(M2:M16<>AH2:AH16))","v":0},{"$f":"SUMPRODUCT(ISNUMBER(N2:N16)*ISTEXT(AH2:AH16)*(N2:N16<>AH2:AH16))+SUMPRODUCT(ISTEXT(N2:N16)*ISNUMBER(AH2:AH16)*(N2:N16<>AH2:AH16))+SUMPRODUCT(ISTEXT(N2:N16)*ISTEXT(AH2:AH16)*(N2:N16<>AH2:AH16))+SUMPRODUCT(ISNUMBER(N2:N16)*ISNUMBER(AH2:AH16)*(N2:N16<>AH2:AH16))","v":0},{"$f":"SUMPRODUCT(ISNUMBER(O2:O16)*ISTEXT(AH2:AH16)*(O2:O16<>AH2:AH16))+SUMPRODUCT(ISTEXT(O2:O16)*ISNUMBER(AH2:AH16)*(O2:O16<>AH2:AH16))+SUMPRODUCT(ISTEXT(O2:O16)*ISTEXT(AH2:AH16)*(O2:O16<>AH2:AH16))+SUMPRODUCT(ISNUMBER(O2:O16)*ISNUMBER(AH2:AH16)*(O2:O16<>AH2:AH16))","v":0},{"$f":"SUMPRODUCT(ISNUMBER(P2:P16)*ISTEXT(AH2:AH16)*(P2:P16<>AH2:AH16))+SUMPRODUCT(ISTEXT(P2:P16)*ISNUMBER(AH2:AH16)*(P2:P16<>AH2:AH16))+SUMPRODUCT(ISTEXT(P2:P16)*ISTEXT(AH2:AH16)*(P2:P16<>AH2:AH16))+SUMPRODUCT(ISNUMBER(P2:P16)*ISNUMBER(AH2:AH16)*(P2:P16<>AH2:AH16))","v":0},{"$f":"SUMPRODUCT(ISNUMBER(Q2:Q16)*ISTEXT(AH2:AH16)*(Q2:Q16<>AH2:AH16))+SUMPRODUCT(ISTEXT(Q2:Q16)*ISNUMBER(AH2:AH16)*(Q2:Q16<>AH2:AH16))+SUMPRODUCT(ISTEXT(Q2:Q16)*ISTEXT(AH2:AH16)*(Q2:Q16<>AH2:AH16))+SUMPRODUCT(ISNUMBER(Q2:Q16)*ISNUMBER(AH2:AH16)*(Q2:Q16<>AH2:AH16))","v":0},{"$f":"SUMPRODUCT(ISNUMBER(R2:R16)*ISTEXT(AH2:AH16)*(R2:R16<>AH2:AH16))+SUMPRODUCT(ISTEXT(R2:R16)*ISNUMBER(AH2:AH16)*(R2:R16<>AH2:AH16))+SUMPRODUCT(ISTEXT(R2:R16)*ISTEXT(AH2:AH16)*(R2:R16<>AH2:AH16))+SUMPRODUCT(ISNUMBER(R2:R16)*ISNUMBER(AH2:AH16)*(R2:R16<>AH2:AH16))","v":0},{"$f":"SUMPRODUCT(ISNUMBER(S2:S16)*ISTEXT(AH2:AH16)*(S2:S16<>AH2:AH16))+SUMPRODUCT(ISTEXT(S2:S16)*ISNUMBER(AH2:AH16)*(S2:S16<>AH2:AH16))+SUMPRODUCT(ISTEXT(S2:S16)*ISTEXT(AH2:AH16)*(S2:S16<>AH2:AH16))+SUMPRODUCT(ISNUMBER(S2:S16)*ISNUMBER(AH2:AH16)*(S2:S16<>AH2:AH16))","v":0},{"$f":"SUMPRODUCT(ISNUMBER(T2:T16)*ISTEXT(AH2:AH16)*(T2:T16<>AH2:AH16))+SUMPRODUCT(ISTEXT(T2:T16)*ISNUMBER(AH2:AH16)*(T2:T16<>AH2:AH16))+SUMPRODUCT(ISTEXT(T2:T16)*ISTEXT(AH2:AH16)*(T2:T16<>AH2:AH16))+SUMPRODUCT(ISNUMBER(T2:T16)*ISNUMBER(AH2:AH16)*(T2:T16<>AH2:AH16))","v":0},{"$f":"SUMPRODUCT(ISNUMBER(U2:U16)*ISTEXT(AH2:AH16)*(U2:U16<>AH2:AH16))+SUMPRODUCT(ISTEXT(U2:U16)*ISNUMBER(AH2:AH16)*(U2:U16<>AH2:AH16))+SUMPRODUCT(ISTEXT(U2:U16)*ISTEXT(AH2:AH16)*(U2:U16<>AH2:AH16))+SUMPRODUCT(ISNUMBER(U2:U16)*ISNUMBER(AH2:AH16)*(U2:U16<>AH2:AH16))","v":0},{"$f":"SUMPRODUCT(ISNUMBER(V2:V16)*ISTEXT(AH2:AH16)*(V2:V16<>AH2:AH16))+SUMPRODUCT(ISTEXT(V2:V16)*ISNUMBER(AH2:AH16)*(V2:V16<>AH2:AH16))+SUMPRODUCT(ISTEXT(V2:V16)*ISTEXT(AH2:AH16)*(V2:V16<>AH2:AH16))+SUMPRODUCT(ISNUMBER(V2:V16)*ISNUMBER(AH2:AH16)*(V2:V16<>AH2:AH16))","v":0},{"$f":"SUMPRODUCT(ISNUMBER(W2:W16)*ISTEXT(AH2:AH16)*(W2:W16<>AH2:AH16))+SUMPRODUCT(ISTEXT(W2:W16)*ISNUMBER(AH2:AH16)*(W2:W16<>AH2:AH16))+SUMPRODUCT(ISTEXT(W2:W16)*ISTEXT(AH2:AH16)*(W2:W16<>AH2:AH16))+SUMPRODUCT(ISNUMBER(W2:W16)*ISNUMBER(AH2:AH16)*(W2:W16<>AH2:AH16))","v":0},{"$f":"SUMPRODUCT(ISNUMBER(X2:X16)*ISTEXT(AH2:AH16)*(X2:X16<>AH2:AH16))+SUMPRODUCT(ISTEXT(X2:X16)*ISNUMBER(AH2:AH16)*(X2:X16<>AH2:AH16))+SUMPRODUCT(ISTEXT(X2:X16)*ISTEXT(AH2:AH16)*(X2:X16<>AH2:AH16))+SUMPRODUCT(ISNUMBER(X2:X16)*ISNUMBER(AH2:AH16)*(X2:X16<>AH2:AH16))","v":0},{"$f":"SUMPRODUCT(ISNUMBER(Y2:Y16)*ISTEXT(AH2:AH16)*(Y2:Y16<>AH2:AH16))+SUMPRODUCT(ISTEXT(Y2:Y16)*ISNUMBER(AH2:AH16)*(Y2:Y16<>AH2:AH16))+SUMPRODUCT(ISTEXT(Y2:Y16)*ISTEXT(AH2:AH16)*(Y2:Y16<>AH2:AH16))+SUMPRODUCT(ISNUMBER(Y2:Y16)*ISNUMBER(AH2:AH16)*(Y2:Y16<>AH2:AH16))","v":0},{"$f":"SUMPRODUCT(ISNUMBER(Z2:Z16)*ISTEXT(AH2:AH16)*(Z2:Z16<>AH2:AH16))+SUMPRODUCT(ISTEXT(Z2:Z16)*ISNUMBER(AH2:AH16)*(Z2:Z16<>AH2:AH16))+SUMPRODUCT(ISTEXT(Z2:Z16)*ISTEXT(AH2:AH16)*(Z2:Z16<>AH2:AH16))+SUMPRODUCT(ISNUMBER(Z2:Z16)*ISNUMBER(AH2:AH16)*(Z2:Z16<>AH2:AH16))","v":0},{"$f":"SUMPRODUCT(ISNUMBER(AA2:AA16)*ISTEXT(AH2:AH16)*(AA2:AA16<>AH2:AH16))+SUMPRODUCT(ISTEXT(AA2:AA16)*ISNUMBER(AH2:AH16)*(AA2:AA16<>AH2:AH16))+SUMPRODUCT(ISTEXT(AA2:AA16)*ISTEXT(AH2:AH16)*(AA2:AA16<>AH2:AH16))+SUMPRODUCT(ISNUMBER(AA2:AA16)*ISNUMBER(AH2:AH16)*(AA2:AA16<>AH2:AH16))","v":0},{"$f":"SUMPRODUCT(ISNUMBER(AB2:AB16)*ISTEXT(AH2:AH16)*(AB2:AB16<>AH2:AH16))+SUMPRODUCT(ISTEXT(AB2:AB16)*ISNUMBER(AH2:AH16)*(AB2:AB16<>AH2:AH16))+SUMPRODUCT(ISTEXT(AB2:AB16)*ISTEXT(AH2:AH16)*(AB2:AB16<>AH2:AH16))+SUMPRODUCT(ISNUMBER(AB2:AB16)*ISNUMBER(AH2:AH16)*(AB2:AB16<>AH2:AH16))","v":0},{"$f":"SUMPRODUCT(ISNUMBER(AC2:AC16)*ISTEXT(AH2:AH16)*(AC2:AC16<>AH2:AH16))+SUMPRODUCT(ISTEXT(AC2:AC16)*ISNUMBER(AH2:AH16)*(AC2:AC16<>AH2:AH16))+SUMPRODUCT(ISTEXT(AC2:AC16)*ISTEXT(AH2:AH16)*(AC2:AC16<>AH2:AH16))+SUMPRODUCT(ISNUMBER(AC2:AC16)*ISNUMBER(AH2:AH16)*(AC2:AC16<>AH2:AH16))","v":0},{"$f":"SUMPRODUCT(ISNUMBER(AD2:AD16)*ISTEXT(AH2:AH16)*(AD2:AD16<>AH2:AH16))+SUMPRODUCT(ISTEXT(AD2:AD16)*ISNUMBER(AH2:AH16)*(AD2:AD16<>AH2:AH16))+SUMPRODUCT(ISTEXT(AD2:AD16)*ISTEXT(AH2:AH16)*(AD2:AD16<>AH2:AH16))+SUMPRODUCT(ISNUMBER(AD2:AD16)*ISNUMBER(AH2:AH16)*(AD2:AD16<>AH2:AH16))","v":0}]
[null,null,null,null,null,null,null,null,null,null,null,null,null,null,null,null,null,null,null,null,null,null,null,null,null,null,null,null,null,null,null,null,null,null,null,null,null,null,null,null,null,null,null,null,null,null,null,null,null,null,null,"19-22","20-22","21-22","1-23","2-23","3-23","4-23","5-23","6-23","7-23","8-23","9-23","10-23","11-23","12-23","13-23","14-23","15-23","16-23"]
[null,null,null,null,null,null,null,null,null,null,null,null,null,null,null,null,null,null,null,null,null,null,null,null,null,null,null,null,null,null,null,null,null,null,null,null,null,null,null,null,null,null,null,null,null,null,null,null,null,null,null,{"$f":"SUMPRODUCT(ISNUMBER(AE2:AE16)*ISTEXT(AH2:AH16)*(AE2:AE16<>AH2:AH16))+SUMPRODUCT(ISTEXT(AE2:AE16)*ISNUMBER(AH2:AH16)*(AE2:AE16<>AH2:AH16))+SUMPRODUCT(ISTEXT(AE2:AE16)*ISTEXT(AH2:AH16)*(AE2:AE16<>AH2:AH16))+SUMPRODUCT(ISNUMBER(AE2:AE16)*ISNUMBER(AH2:AH16)*(AE2:AE16<>AH2:AH16))","v":0},{"$f":"SUMPRODUCT(ISNUMBER(AF2:AF16)*ISTEXT(AH2:AH16)*(AF2:AF16<>AH2:AH16))+SUMPRODUCT(ISTEXT(AF2:AF16)*ISNUMBER(AH2:AH16)*(AF2:AF16<>AH2:AH16))+SUMPRODUCT(ISTEXT(AF2:AF16)*ISTEXT(AH2:AH16)*(AF2:AF16<>AH2:AH16))+SUMPRODUCT(ISNUMBER(AF2:AF16)*ISNUMBER(AH2:AH16)*(AF2:AF16<>AH2:AH16))","v":0},{"$f":"SUMPRODUCT(ISNUMBER(AG2:AG16)*ISTEXT(AH2:AH16)*(AG2:AG16<>AH2:AH16))+SUMPRODUCT(ISTEXT(AG2:AG16)*ISNUMBER(AH2:AH16)*(AG2:AG16<>AH2:AH16))+SUMPRODUCT(ISTEXT(AG2:AG16)*ISTEXT(AH2:AH16)*(AG2:AG16<>AH2:AH16))+SUMPRODUCT(ISNUMBER(AG2:AG16)*ISNUMBER(AH2:AH16)*(AG2:AG16<>AH2:AH16))","v":0},{"$f":"SUMPRODUCT(ISNUMBER(M2:M16)*ISTEXT(AI2:AI16)*(M2:M16<>AI2:AI16))+SUMPRODUCT(ISTEXT(M2:M16)*ISNUMBER(AI2:AI16)*(M2:M16<>AI2:AI16))+SUMPRODUCT(ISTEXT(M2:M16)*ISTEXT(AI2:AI16)*(M2:M16<>AI2:AI16))+SUMPRODUCT(ISNUMBER(M2:M16)*ISNUMBER(AI2:AI16)*(M2:M16<>AI2:AI16))","v":0},{"$f":"SUMPRODUCT(ISNUMBER(N2:N16)*ISTEXT(AI2:AI16)*(N2:N16<>AI2:AI16))+SUMPRODUCT(ISTEXT(N2:N16)*ISNUMBER(AI2:AI16)*(N2:N16<>AI2:AI16))+SUMPRODUCT(ISTEXT(N2:N16)*ISTEXT(AI2:AI16)*(N2:N16<>AI2:AI16))+SUMPRODUCT(ISNUMBER(N2:N16)*ISNUMBER(AI2:AI16)*(N2:N16<>AI2:AI16))","v":0},{"$f":"SUMPRODUCT(ISNUMBER(O2:O16)*ISTEXT(AI2:AI16)*(O2:O16<>AI2:AI16))+SUMPRODUCT(ISTEXT(O2:O16)*ISNUMBER(AI2:AI16)*(O2:O16<>AI2:AI16))+SUMPRODUCT(ISTEXT(O2:O16)*ISTEXT(AI2:AI16)*(O2:O16<>AI2:AI16))+SUMPRODUCT(ISNUMBER(O2:O16)*ISNUMBER(AI2:AI16)*(O2:O16<>AI2:AI16))","v":0},{"$f":"SUMPRODUCT(ISNUMBER(P2:P16)*ISTEXT(AI2:AI16)*(P2:P16<>AI2:AI16))+SUMPRODUCT(ISTEXT(P2:P16)*ISNUMBER(AI2:AI16)*(P2:P16<>AI2:AI16))+SUMPRODUCT(ISTEXT(P2:P16)*ISTEXT(AI2:AI16)*(P2:P16<>AI2:AI16))+SUMPRODUCT(ISNUMBER(P2:P16)*ISNUMBER(AI2:AI16)*(P2:P16<>AI2:AI16))","v":0},{"$f":"SUMPRODUCT(ISNUMBER(Q2:Q16)*ISTEXT(AI2:AI16)*(Q2:Q16<>AI2:AI16))+SUMPRODUCT(ISTEXT(Q2:Q16)*ISNUMBER(AI2:AI16)*(Q2:Q16<>AI2:AI16))+SUMPRODUCT(ISTEXT(Q2:Q16)*ISTEXT(AI2:AI16)*(Q2:Q16<>AI2:AI16))+SUMPRODUCT(ISNUMBER(Q2:Q16)*ISNUMBER(AI2:AI16)*(Q2:Q16<>AI2:AI16))","v":0},{"$f":"SUMPRODUCT(ISNUMBER(R2:R16)*ISTEXT(AI2:AI16)*(R2:R16<>AI2:AI16))+SUMPRODUCT(ISTEXT(R2:R16)*ISNUMBER(AI2:AI16)*(R2:R16<>AI2:AI16))+SUMPRODUCT(ISTEXT(R2:R16)*ISTEXT(AI2:AI16)*(R2:R16<>AI2:AI16))+SUMPRODUCT(ISNUMBER(R2:R16)*ISNUMBER(AI2:AI16)*(R2:R16<>AI2:AI16))","v":0},{"$f":"SUMPRODUCT(ISNUMBER(S2:S16)*ISTEXT(AI2:AI16)*(S2:S16<>AI2:AI16))+SUMPRODUCT(ISTEXT(S2:S16)*ISNUMBER(AI2:AI16)*(S2:S16<>AI2:AI16))+SUMPRODUCT(ISTEXT(S2:S16)*ISTEXT(AI2:AI16)*(S2:S16<>AI2:AI16))+SUMPRODUCT(ISNUMBER(S2:S16)*ISNUMBER(AI2:AI16)*(S2:S16<>AI2:AI16))","v":0},{"$f":"SUMPRODUCT(ISNUMBER(T2:T16)*ISTEXT(AI2:AI16)*(T2:T16<>AI2:AI16))+SUMPRODUCT(ISTEXT(T2:T16)*ISNUMBER(AI2:AI16)*(T2:T16<>AI2:AI16))+SUMPRODUCT(ISTEXT(T2:T16)*ISTEXT(AI2:AI16)*(T2:T16<>AI2:AI16))+SUMPRODUCT(ISNUMBER(T2:T16)*ISNUMBER(AI2:AI16)*(T2:T16<>AI2:AI16))","v":0},{"$f":"SUMPRODUCT(ISNUMBER(U2:U16)*ISTEXT(AI2:AI16)*(U2:U16<>AI2:AI16))+SUMPRODUCT(ISTEXT(U2:U16)*ISNUMBER(AI2:AI16)*(U2:U16<>AI2:AI16))+SUMPRODUCT(ISTEXT(U2:U16)*ISTEXT(AI2:AI16)*(U2:U16<>AI2:AI16))+SUMPRODUCT(ISNUMBER(U2:U16)*ISNUMBER(AI2:AI16)*(U2:U16<>AI2:AI16))","v":0},{"$f":"SUMPRODUCT(ISNUMBER(V2:V16)*ISTEXT(AI2:AI16)*(V2:V16<>AI2:AI16))+SUMPRODUCT(ISTEXT(V2:V16)*ISNUMBER(AI2:AI16)*(V2:V16<>AI2:AI16))+SUMPRODUCT(ISTEXT(V2:V16)*ISTEXT(AI2:AI16)*(V2:V16<>AI2:AI16))+SUMPRODUCT(ISNUMBER(V2:V16)*ISNUMBER(AI2:AI16)*(V2:V16<>AI2:AI16))","v":0},{"$f":"SUMPRODUCT(ISNUMBER(W2:W16)*ISTEXT(AI2:AI16)*(W2:W16<>AI2:AI16))+SUMPRODUCT(ISTEXT(W2:W16)*ISNUMBER(AI2:AI16)*(W2:W16<>AI2:AI16))+SUMPRODUCT(ISTEXT(W2:W16)*ISTEXT(AI2:AI16)*(W2:W16<>AI2:AI16))+SUMPRODUCT(ISNUMBER(W2:W16)*ISNUMBER(AI2:AI16)*(W2:W16<>AI2:AI16))","v":0},{"$f":"SUMPRODUCT(ISNUMBER(X2:X16)*ISTEXT(AI2:AI16)*(X2:X16<>AI2:AI16))+SUMPRODUCT(ISTEXT(X2:X16)*ISNUMBER(AI2:AI16)*(X2:X16<>AI2:AI16))+SUMPRODUCT(ISTEXT(X2:X16)*ISTEXT(AI2:AI16)*(X2:X16<>AI2:AI16))+SUMPRODUCT(ISNUMBER(X2:X16)*ISNUMBER(AI2:AI16)*(X2:X16<>AI2:AI16))","v":0},{"$f":"SUMPRODUCT(ISNUMBER(Y2:Y16)*ISTEXT(AI2:AI16)*(Y2:Y16<>AI2:AI16))+SUMPRODUCT(ISTEXT(Y2:Y16)*ISNUMBER(AI2:AI16)*(Y2:Y16<>AI2:AI16))+SUMPRODUCT(ISTEXT(Y2:Y16)*ISTEXT(AI2:AI16)*(Y2:Y16<>AI2:AI16))+SUMPRODUCT(ISNUMBER(Y2:Y16)*ISNUMBER(AI2:AI16)*(Y2:Y16<>AI2:AI16))","v":0},{"$f":"SUMPRODUCT(ISNUMBER(Z2:Z16)*ISTEXT(AI2:AI16)*(Z2:Z16<>AI2:AI16))+SUMPRODUCT(ISTEXT(Z2:Z16)*ISNUMBER(AI2:AI16)*(Z2:Z16<>AI2:AI16))+SUMPRODUCT(ISTEXT(Z2:Z16)*ISTEXT(AI2:AI16)*(Z2:Z16<>AI2:AI16))+SUMPRODUCT(ISNUMBER(Z2:Z16)*ISNUMBER(AI2:AI16)*(Z2:Z16<>AI2:AI16))","v":0},{"$f":"SUMPRODUCT(ISNUMBER(AA2:AA16)*ISTEXT(AI2:AI16)*(AA2:AA16<>AI2:AI16))+SUMPRODUCT(ISTEXT(AA2:AA16)*ISNUMBER(AI2:AI16)*(AA2:AA16<>AI2:AI16))+SUMPRODUCT(ISTEXT(AA2:AA16)*ISTEXT(AI2:AI16)*(AA2:AA16<>AI2:AI16))+SUMPRODUCT(ISNUMBER(AA2:AA16)*ISNUMBER(AI2:AI16)*(AA2:AA16<>AI2:AI16))","v":0},{"$f":"SUMPRODUCT(ISNUMBER(AB2:AB16)*ISTEXT(AI2:AI16)*(AB2:AB16<>AI2:AI16))+SUMPRODUCT(ISTEXT(AB2:AB16)*ISNUMBER(AI2:AI16)*(AB2:AB16<>AI2:AI16))+SUMPRODUCT(ISTEXT(AB2:AB16)*ISTEXT(AI2:AI16)*(AB2:AB16<>AI2:AI16))+SUMPRODUCT(ISNUMBER(AB2:AB16)*ISNUMBER(AI2:AI16)*(AB2:AB16<>AI2:AI16))","v":0}]
[null,null,null,null,null,null,null,null,null,null,null,null,null,null,null,null,null,null,null,null,null,null,null,null,null,null,null,null,null,null,null,null,null,null,null,null,null,null,null,null,null,null,null,null,null,null,null,null,null,null,null,"17-23","18-23","19-23","20-23","21-23","22-23","1-24","2-24","3-24","5-24","6-24","7-24","8-24","9-24","10-24","11-24","12-24","13-24","14-24"]
[null,null,null,null,null,null,null,null,null,null,null,null,null,null,null,null,null,null,null,null,null,null,null,null,null,null,null,null,null,null,null,null,null,null,null,null,null,null,null,null,null,null,null,null,null,null,null,null,null,null,null,{"$f":"SUMPRODUCT(ISNUMBER(AC2:AC16)*ISTEXT(AI2:AI16)*(AC2:AC16<>AI2:AI16))+SUMPRODUCT(ISTEXT(AC2:AC16)*ISNUMBER(AI2:AI16)*(AC2:AC16<>AI2:AI16))+SUMPRODUCT(ISTEXT(AC2:AC16)*ISTEXT(AI2:AI16)*(AC2:AC16<>AI2:AI16))+SUMPRODUCT(ISNUMBER(AC2:AC16)*ISNUMBER(AI2:AI16)*(AC2:AC16<>AI2:AI16))","v":0},{"$f":"SUMPRODUCT(ISNUMBER(AD2:AD16)*ISTEXT(AI2:AI16)*(AD2:AD16<>AI2:AI16))+SUMPRODUCT(ISTEXT(AD2:AD16)*ISNUMBER(AI2:AI16)*(AD2:AD16<>AI2:AI16))+SUMPRODUCT(ISTEXT(AD2:AD16)*ISTEXT(AI2:AI16)*(AD2:AD16<>AI2:AI16))+SUMPRODUCT(ISNUMBER(AD2:AD16)*ISNUMBER(AI2:AI16)*(AD2:AD16<>AI2:AI16))","v":0},{"$f":"SUMPRODUCT(ISNUMBER(AE2:AE16)*ISTEXT(AI2:AI16)*(AE2:AE16<>AI2:AI16))+SUMPRODUCT(ISTEXT(AE2:AE16)*ISNUMBER(AI2:AI16)*(AE2:AE16<>AI2:AI16))+SUMPRODUCT(ISTEXT(AE2:AE16)*ISTEXT(AI2:AI16)*(AE2:AE16<>AI2:AI16))+SUMPRODUCT(ISNUMBER(AE2:AE16)*ISNUMBER(AI2:AI16)*(AE2:AE16<>AI2:AI16))","v":0},{"$f":"SUMPRODUCT(ISNUMBER(AF2:AF16)*ISTEXT(AI2:AI16)*(AF2:AF16<>AI2:AI16))+SUMPRODUCT(ISTEXT(AF2:AF16)*ISNUMBER(AI2:AI16)*(AF2:AF16<>AI2:AI16))+SUMPRODUCT(ISTEXT(AF2:AF16)*ISTEXT(AI2:AI16)*(AF2:AF16<>AI2:AI16))+SUMPRODUCT(ISNUMBER(AF2:AF16)*ISNUMBER(AI2:AI16)*(AF2:AF16<>AI2:AI16))","v":0},{"$f":"SUMPRODUCT(ISNUMBER(AG2:AG16)*ISTEXT(AI2:AI16)*(AG2:AG16<>AI2:AI16))+SUMPRODUCT(ISTEXT(AG2:AG16)*ISNUMBER(AI2:AI16)*(AG2:AG16<>AI2:AI16))+SUMPRODUCT(ISTEXT(AG2:AG16)*ISTEXT(AI2:AI16)*(AG2:AG16<>AI2:AI16))+SUMPRODUCT(ISNUMBER(AG2:AG16)*ISNUMBER(AI2:AI16)*(AG2:AG16<>AI2:AI16))","v":0},{"$f":"SUMPRODUCT(ISNUMBER(AH2:AH16)*ISTEXT(AI2:AI16)*(AH2:AH16<>AI2:AI16))+SUMPRODUCT(ISTEXT(AH2:AH16)*ISNUMBER(AI2:AI16)*(AH2:AH16<>AI2:AI16))+SUMPRODUCT(ISTEXT(AH2:AH16)*ISTEXT(AI2:AI16)*(AH2:AH16<>AI2:AI16))+SUMPRODUCT(ISNUMBER(AH2:AH16)*ISNUMBER(AI2:AI16)*(AH2:AH16<>AI2:AI16))","v":0},{"$f":"SUMPRODUCT(ISNUMBER(M2:M16)*ISTEXT(AJ2:AJ16)*(M2:M16<>AJ2:AJ16))+SUMPRODUCT(ISTEXT(M2:M16)*ISNUMBER(AJ2:AJ16)*(M2:M16<>AJ2:AJ16))+SUMPRODUCT(ISTEXT(M2:M16)*ISTEXT(AJ2:AJ16)*(M2:M16<>AJ2:AJ16))+SUMPRODUCT(ISNUMBER(M2:M16)*ISNUMBER(AJ2:AJ16)*(M2:M16<>AJ2:AJ16))","v":0},{"$f":"SUMPRODUCT(ISNUMBER(N2:N16)*ISTEXT(AJ2:AJ16)*(N2:N16<>AJ2:AJ16))+SUMPRODUCT(ISTEXT(N2:N16)*ISNUMBER(AJ2:AJ16)*(N2:N16<>AJ2:AJ16))+SUMPRODUCT(ISTEXT(N2:N16)*ISTEXT(AJ2:AJ16)*(N2:N16<>AJ2:AJ16))+SUMPRODUCT(ISNUMBER(N2:N16)*ISNUMBER(AJ2:AJ16)*(N2:N16<>AJ2:AJ16))","v":0},{"$f":"SUMPRODUCT(ISNUMBER(O2:O16)*ISTEXT(AJ2:AJ16)*(O2:O16<>AJ2:AJ16))+SUMPRODUCT(ISTEXT(O2:O16)*ISNUMBER(AJ2:AJ16)*(O2:O16<>AJ2:AJ16))+SUMPRODUCT(ISTEXT(O2:O16)*ISTEXT(AJ2:AJ16)*(O2:O16<>AJ2:AJ16))+SUMPRODUCT(ISNUMBER(O2:O16)*ISNUMBER(AJ2:AJ16)*(O2:O16<>AJ2:AJ16))","v":0},{"$f":"SUMPRODUCT(ISNUMBER(Q2:Q16)*ISTEXT(AJ2:AJ16)*(Q2:Q16<>AJ2:AJ16))+SUMPRODUCT(ISTEXT(Q2:Q16)*ISNUMBER(AJ2:AJ16)*(Q2:Q16<>AJ2:AJ16))+SUMPRODUCT(ISTEXT(Q2:Q16)*ISTEXT(AJ2:AJ16)*(Q2:Q16<>AJ2:AJ16))+SUMPRODUCT(ISNUMBER(Q2:Q16)*ISNUMBER(AJ2:AJ16)*(Q2:Q16<>AJ2:AJ16))","v":0},{"$f":"SUMPRODUCT(ISNUMBER(R2:R16)*ISTEXT(AJ2:AJ16)*(R2:R16<>AJ2:AJ16))+SUMPRODUCT(ISTEXT(R2:R16)*ISNUMBER(AJ2:AJ16)*(R2:R16<>AJ2:AJ16))+SUMPRODUCT(ISTEXT(R2:R16)*ISTEXT(AJ2:AJ16)*(R2:R16<>AJ2:AJ16))+SUMPRODUCT(ISNUMBER(R2:R16)*ISNUMBER(AJ2:AJ16)*(R2:R16<>AJ2:AJ16))","v":0},{"$f":"SUMPRODUCT(ISNUMBER(S2:S16)*ISTEXT(AJ2:AJ16)*(S2:S16<>AJ2:AJ16))+SUMPRODUCT(ISTEXT(S2:S16)*ISNUMBER(AJ2:AJ16)*(S2:S16<>AJ2:AJ16))+SUMPRODUCT(ISTEXT(S2:S16)*ISTEXT(AJ2:AJ16)*(S2:S16<>AJ2:AJ16))+SUMPRODUCT(ISNUMBER(S2:S16)*ISNUMBER(AJ2:AJ16)*(S2:S16<>AJ2:AJ16))","v":0},{"$f":"SUMPRODUCT(ISNUMBER(T2:T16)*ISTEXT(AJ2:AJ16)*(T2:T16<>AJ2:AJ16))+SUMPRODUCT(ISTEXT(T2:T16)*ISNUMBER(AJ2:AJ16)*(T2:T16<>AJ2:AJ16))+SUMPRODUCT(ISTEXT(T2:T16)*ISTEXT(AJ2:AJ16)*(T2:T16<>AJ2:AJ16))+SUMPRODUCT(ISNUMBER(T2:T16)*ISNUMBER(AJ2:AJ16)*(T2:T16<>AJ2:AJ16))","v":0},{"$f":"SUMPRODUCT(ISNUMBER(U2:U16)*ISTEXT(AJ2:AJ16)*(U2:U16<>AJ2:AJ16))+SUMPRODUCT(ISTEXT(U2:U16)*ISNUMBER(AJ2:AJ16)*(U2:U16<>AJ2:AJ16))+SUMPRODUCT(ISTEXT(U2:U16)*ISTEXT(AJ2:AJ16)*(U2:U16<>AJ2:AJ16))+SUMPRODUCT(ISNUMBER(U2:U16)*ISNUMBER(AJ2:AJ16)*(U2:U16<>AJ2:AJ16))","v":0},{"$f":"SUMPRODUCT(ISNUMBER(V2:V16)*ISTEXT(AJ2:AJ16)*(V2:V16<>AJ2:AJ16))+SUMPRODUCT(ISTEXT(V2:V16)*ISNUMBER(AJ2:AJ16)*(V2:V16<>AJ2:AJ16))+SUMPRODUCT(ISTEXT(V2:V16)*ISTEXT(AJ2:AJ16)*(V2:V16<>AJ2:AJ16))+SUMPRODUCT(ISNUMBER(V2:V16)*ISNUMBER(AJ2:AJ16)*(V2:V16<>AJ2:AJ16))","v":0},{"$f":"SUMPRODUCT(ISNUMBER(W2:W16)*ISTEXT(AJ2:AJ16)*(W2:W16<>AJ2:AJ16))+SUMPRODUCT(ISTEXT(W2:W16)*ISNUMBER(AJ2:AJ16)*(W2:W16<>AJ2:AJ16))+SUMPRODUCT(ISTEXT(W2:W16)*ISTEXT(AJ2:AJ16)*(W2:W16<>AJ2:AJ16))+SUMPRODUCT(ISNUMBER(W2:W16)*ISNUMBER(AJ2:AJ16)*(W2:W16<>AJ2:AJ16))","v":0},{"$f":"SUMPRODUCT(ISNUMBER(X2:X16)*ISTEXT(AJ2:AJ16)*(X2:X16<>AJ2:AJ16))+SUMPRODUCT(ISTEXT(X2:X16)*ISNUMBER(AJ2:AJ16)*(X2:X16<>AJ2:AJ16))+SUMPRODUCT(ISTEXT(X2:X16)*ISTEXT(AJ2:AJ16)*(X2:X16<>AJ2:AJ16))+SUMPRODUCT(ISNUMBER(X2:X16)*ISNUMBER(AJ2:AJ16)*(X2:X16<>AJ2:AJ16))","v":0},{"$f":"SUMPRODUCT(ISNUMBER(Y2:Y16)*ISTEXT(AJ2:AJ16)*(Y2:Y16<>AJ2:AJ16))+SUMPRODUCT(ISTEXT(Y2:Y16)*ISNUMBER(AJ2:AJ16)*(Y2:Y16<>AJ2:AJ16))+SUMPRODUCT(ISTEXT(Y2:Y16)*ISTEXT(AJ2:AJ16)*(Y2:Y16<>AJ2:AJ16))+SUMPRODUCT(ISNUMBER(Y2:Y16)*ISNUMBER(AJ2:AJ16)*(Y2:Y16<>AJ2:AJ16))","v":0},{"$f":"SUMPRODUCT(ISNUMBER(Z2:Z16)*ISTEXT(AJ2:AJ16)*(Z2:Z16<>AJ2:AJ16))+SUMPRODUCT(ISTEXT(Z2:Z16)*ISNUMBER(AJ2:AJ16)*(Z2:Z16<>AJ2:AJ16))+SUMPRODUCT(ISTEXT(Z2:Z16)*ISTEXT(AJ2:AJ16)*(Z2:Z16<>AJ2:AJ16))+SUMPRODUCT(ISNUMBER(Z2:Z16)*ISNUMBER(AJ2:AJ16)*(Z2:Z16<>AJ2:AJ16))","v":0}]
[null,null,null,null,null,null,null,null,null,null,null,null,null,null,null,null,null,null,null,null,null,null,null,null,null,null,null,null,null,null,null,null,null,null,null,null,null,null,null,null,null,null,null,null,null,null,null,null,null,null,null,"15-24","16-24","17-24","18-24","19-24","20-24","21-24","22-24","23-24","4-24","1-25","2-25","3-25","4-25","5-25","6-25","7-25","8-25","9-25"]
[null,null,null,null,null,null,null,null,null,null,null,null,null,null,null,null,null,null,null,null,null,null,null,null,null,null,null,null,null,null,null,null,null,null,null,null,null,null,null,null,null,null,null,null,null,null,null,null,null,null,null,{"$f":"SUMPRODUCT(ISNUMBER(AA2:AA16)*ISTEXT(AJ2:AJ16)*(AA2:AA16<>AJ2:AJ16))+SUMPRODUCT(ISTEXT(AA2:AA16)*ISNUMBER(AJ2:AJ16)*(AA2:AA16<>AJ2:AJ16))+SUMPRODUCT(ISTEXT(AA2:AA16)*ISTEXT(AJ2:AJ16)*(AA2:AA16<>AJ2:AJ16))+SUMPRODUCT(ISNUMBER(AA2:AA16)*ISNUMBER(AJ2:AJ16)*(AA2:AA16<>AJ2:AJ16))","v":0},{"$f":"SUMPRODUCT(ISNUMBER(AB2:AB16)*ISTEXT(AJ2:AJ16)*(AB2:AB16<>AJ2:AJ16))+SUMPRODUCT(ISTEXT(AB2:AB16)*ISNUMBER(AJ2:AJ16)*(AB2:AB16<>AJ2:AJ16))+SUMPRODUCT(ISTEXT(AB2:AB16)*ISTEXT(AJ2:AJ16)*(AB2:AB16<>AJ2:AJ16))+SUMPRODUCT(ISNUMBER(AB2:AB16)*ISNUMBER(AJ2:AJ16)*(AB2:AB16<>AJ2:AJ16))","v":0},{"$f":"SUMPRODUCT(ISNUMBER(AC2:AC16)*ISTEXT(AJ2:AJ16)*(AC2:AC16<>AJ2:AJ16))+SUMPRODUCT(ISTEXT(AC2:AC16)*ISNUMBER(AJ2:AJ16)*(AC2:AC16<>AJ2:AJ16))+SUMPRODUCT(ISTEXT(AC2:AC16)*ISTEXT(AJ2:AJ16)*(AC2:AC16<>AJ2:AJ16))+SUMPRODUCT(ISNUMBER(AC2:AC16)*ISNUMBER(AJ2:AJ16)*(AC2:AC16<>AJ2:AJ16))","v":0},{"$f":"SUMPRODUCT(ISNUMBER(AD2:AD16)*ISTEXT(AJ2:AJ16)*(AD2:AD16<>AJ2:AJ16))+SUMPRODUCT(ISTEXT(AD2:AD16)*ISNUMBER(AJ2:AJ16)*(AD2:AD16<>AJ2:AJ16))+SUMPRODUCT(ISTEXT(AD2:AD16)*ISTEXT(AJ2:AJ16)*(AD2:AD16<>AJ2:AJ16))+SUMPRODUCT(ISNUMBER(AD2:AD16)*ISNUMBER(AJ2:AJ16)*(AD2:AD16<>AJ2:AJ16))","v":0},{"$f":"SUMPRODUCT(ISNUMBER(AE2:AE16)*ISTEXT(AJ2:AJ16)*(AE2:AE16<>AJ2:AJ16))+SUMPRODUCT(ISTEXT(AE2:AE16)*ISNUMBER(AJ2:AJ16)*(AE2:AE16<>AJ2:AJ16))+SUMPRODUCT(ISTEXT(AE2:AE16)*ISTEXT(AJ2:AJ16)*(AE2:AE16<>AJ2:AJ16))+SUMPRODUCT(ISNUMBER(AE2:AE16)*ISNUMBER(AJ2:AJ16)*(AE2:AE16<>AJ2:AJ16))","v":0},{"$f":"SUMPRODUCT(ISNUMBER(AF2:AF16)*ISTEXT(AJ2:AJ16)*(AF2:AF16<>AJ2:AJ16))+SUMPRODUCT(ISTEXT(AF2:AF16)*ISNUMBER(AJ2:AJ16)*(AF2:AF16<>AJ2:AJ16))+SUMPRODUCT(ISTEXT(AF2:AF16)*ISTEXT(AJ2:AJ16)*(AF2:AF16<>AJ2:AJ16))+SUMPRODUCT(ISNUMBER(AF2:AF16)*ISNUMBER(AJ2:AJ16)*(AF2:AF16<>AJ2:AJ16))","v":0},{"$f":"SUMPRODUCT(ISNUMBER(AG2:AG16)*ISTEXT(AJ2:AJ16)*(AG2:AG16<>AJ2:AJ16))+SUMPRODUCT(ISTEXT(AG2:AG16)*ISNUMBER(AJ2:AJ16)*(AG2:AG16<>AJ2:AJ16))+SUMPRODUCT(ISTEXT(AG2:AG16)*ISTEXT(AJ2:AJ16)*(AG2:AG16<>AJ2:AJ16))+SUMPRODUCT(ISNUMBER(AG2:AG16)*ISNUMBER(AJ2:AJ16)*(AG2:AG16<>AJ2:AJ16))","v":0},{"$f":"SUMPRODUCT(ISNUMBER(AH2:AH16)*ISTEXT(AJ2:AJ16)*(AH2:AH16<>AJ2:AJ16))+SUMPRODUCT(ISTEXT(AH2:AH16)*ISNUMBER(AJ2:AJ16)*(AH2:AH16<>AJ2:AJ16))+SUMPRODUCT(ISTEXT(AH2:AH16)*ISTEXT(AJ2:AJ16)*(AH2:AH16<>AJ2:AJ16))+SUMPRODUCT(ISNUMBER(AH2:AH16)*ISNUMBER(AJ2:AJ16)*(AH2:AH16<>AJ2:AJ16))","v":0},{"$f":"SUMPRODUCT(ISNUMBER(AI2:AI16)*ISTEXT(AJ2:AJ16)*(AI2:AI16<>AJ2:AJ16))+SUMPRODUCT(ISTEXT(AI2:AI16)*ISNUMBER(AJ2:AJ16)*(AI2:AI16<>AJ2:AJ16))+SUMPRODUCT(ISTEXT(AI2:AI16)*ISTEXT(AJ2:AJ16)*(AI2:AI16<>AJ2:AJ16))+SUMPRODUCT(ISNUMBER(AI2:AI16)*ISNUMBER(AJ2:AJ16)*(AI2:AI16<>AJ2:AJ16))","v":0},{"$f":"SUMPRODUCT(ISNUMBER(P2:P16)*ISTEXT(AJ2:AJ16)*(P2:P16<>AJ2:AJ16))+SUMPRODUCT(ISTEXT(P2:P16)*ISNUMBER(AJ2:AJ16)*(P2:P16<>AJ2:AJ16))+SUMPRODUCT(ISTEXT(P2:P16)*ISTEXT(AJ2:AJ16)*(P2:P16<>AJ2:AJ16))+SUMPRODUCT(ISNUMBER(P2:P16)*ISNUMBER(AJ2:AJ16)*(P2:P16<>AJ2:AJ16))","v":0},{"$f":"SUMPRODUCT(ISNUMBER(M2:M16)*ISTEXT(AK2:AK16)*(M2:M16<>AK2:AK16))+SUMPRODUCT(ISTEXT(M2:M16)*ISNUMBER(AK2:AK16)*(M2:M16<>AK2:AK16))+SUMPRODUCT(ISTEXT(M2:M16)*ISTEXT(AK2:AK16)*(M2:M16<>AK2:AK16))+SUMPRODUCT(ISNUMBER(M2:M16)*ISNUMBER(AK2:AK16)*(M2:M16<>AK2:AK16))","v":0},{"$f":"SUMPRODUCT(ISNUMBER(N2:N16)*ISTEXT(AK2:AK16)*(N2:N16<>AK2:AK16))+SUMPRODUCT(ISTEXT(N2:N16)*ISNUMBER(AK2:AK16)*(N2:N16<>AK2:AK16))+SUMPRODUCT(ISTEXT(N2:N16)*ISTEXT(AK2:AK16)*(N2:N16<>AK2:AK16))+SUMPRODUCT(ISNUMBER(N2:N16)*ISNUMBER(AK2:AK16)*(N2:N16<>AK2:AK16))","v":0},{"$f":"SUMPRODUCT(ISNUMBER(O2:O16)*ISTEXT(AK2:AK16)*(O2:O16<>AK2:AK16))+SUMPRODUCT(ISTEXT(O2:O16)*ISNUMBER(AK2:AK16)*(O2:O16<>AK2:AK16))+SUMPRODUCT(ISTEXT(O2:O16)*ISTEXT(AK2:AK16)*(O2:O16<>AK2:AK16))+SUMPRODUCT(ISNUMBER(O2:O16)*ISNUMBER(AK2:AK16)*(O2:O16<>AK2:AK16))","v":0},{"$f":"SUMPRODUCT(ISNUMBER(P2:P16)*ISTEXT(AK2:AK16)*(P2:P16<>AK2:AK16))+SUMPRODUCT(ISTEXT(P2:P16)*ISNUMBER(AK2:AK16)*(P2:P16<>AK2:AK16))+SUMPRODUCT(ISTEXT(P2:P16)*ISTEXT(AK2:AK16)*(P2:P16<>AK2:AK16))+SUMPRODUCT(ISNUMBER(P2:P16)*ISNUMBER(AK2:AK16)*(P2:P16<>AK2:AK16))","v":0},{"$f":"SUMPRODUCT(ISNUMBER(Q2:Q16)*ISTEXT(AK2:AK16)*(Q2:Q16<>AK2:AK16))+SUMPRODUCT(ISTEXT(Q2:Q16)*ISNUMBER(AK2:AK16)*(Q2:Q16<>AK2:AK16))+SUMPRODUCT(ISTEXT(Q2:Q16)*ISTEXT(AK2:AK16)*(Q2:Q16<>AK2:AK16))+SUMPRODUCT(ISNUMBER(Q2:Q16)*ISNUMBER(AK2:AK16)*(Q2:Q16<>AK2:AK16))","v":0},{"$f":"SUMPRODUCT(ISNUMBER(R2:R16)*ISTEXT(AK2:AK16)*(R2:R16<>AK2:AK16))+SUMPRODUCT(ISTEXT(R2:R16)*ISNUMBER(AK2:AK16)*(R2:R16<>AK2:AK16))+SUMPRODUCT(ISTEXT(R2:R16)*ISTEXT(AK2:AK16)*(R2:R16<>AK2:AK16))+SUMPRODUCT(ISNUMBER(R2:R16)*ISNUMBER(AK2:AK16)*(R2:R16<>AK2:AK16))","v":0},{"$f":"SUMPRODUCT(ISNUMBER(S2:S16)*ISTEXT(AK2:AK16)*(S2:S16<>AK2:AK16))+SUMPRODUCT(ISTEXT(S2:S16)*ISNUMBER(AK2:AK16)*(S2:S16<>AK2:AK16))+SUMPRODUCT(ISTEXT(S2:S16)*ISTEXT(AK2:AK16)*(S2:S16<>AK2:AK16))+SUMPRODUCT(ISNUMBER(S2:S16)*ISNUMBER(AK2:AK16)*(S2:S16<>AK2:AK16))","v":0},{"$f":"SUMPRODUCT(ISNUMBER(T2:T16)*ISTEXT(AK2:AK16)*(T2:T16<>AK2:AK16))+SUMPRODUCT(ISTEXT(T2:T16)*ISNUMBER(AK2:AK16)*(T2:T16<>AK2:AK16))+SUMPRODUCT(ISTEXT(T2:T16)*ISTEXT(AK2:AK16)*(T2:T16<>AK2:AK16))+SUMPRODUCT(ISNUMBER(T2:T16)*ISNUMBER(AK2:AK16)*(T2:T16<>AK2:AK16))","v":0},{"$f":"SUMPRODUCT(ISNUMBER(U2:U16)*ISTEXT(AK2:AK16)*(U2:U16<>AK2:AK16))+SUMPRODUCT(ISTEXT(U2:U16)*ISNUMBER(AK2:AK16)*(U2:U16<>AK2:AK16))+SUMPRODUCT(ISTEXT(U2:U16)*ISTEXT(AK2:AK16)*(U2:U16<>AK2:AK16))+SUMPRODUCT(ISNUMBER(U2:U16)*ISNUMBER(AK2:AK16)*(U2:U16<>AK2:AK16))","v":0}]
[null,null,null,null,null,null,null,null,null,null,null,null,null,null,null,null,null,null,null,null,null,null,null,null,null,null,null,null,null,null,null,null,null,null,null,null,null,null,null,null,null,null,null,null,null,null,null,null,null,null,null,"10-25","11-25","12-25","13-25","14-25","15-25","16-25","17-25","18-25","19-25","20-25","21-25","22-25","23-25","24-25"]
[null,null,null,null,null,null,null,null,null,null,null,null,null,null,null,null,null,null,null,null,null,null,null,null,null,null,null,null,null,null,null,null,null,null,null,null,null,null,null,null,null,null,null,null,null,null,null,null,null,null,null,{"$f":"SUMPRODUCT(ISNUMBER(V2:V16)*ISTEXT(AK2:AK16)*(V2:V16<>AK2:AK16))+SUMPRODUCT(ISTEXT(V2:V16)*ISNUMBER(AK2:AK16)*(V2:V16<>AK2:AK16))+SUMPRODUCT(ISTEXT(V2:V16)*ISTEXT(AK2:AK16)*(V2:V16<>AK2:AK16))+SUMPRODUCT(ISNUMBER(V2:V16)*ISNUMBER(AK2:AK16)*(V2:V16<>AK2:AK16))","v":0},{"$f":"SUMPRODUCT(ISNUMBER(W2:W16)*ISTEXT(AK2:AK16)*(W2:W16<>AK2:AK16))+SUMPRODUCT(ISTEXT(W2:W16)*ISNUMBER(AK2:AK16)*(W2:W16<>AK2:AK16))+SUMPRODUCT(ISTEXT(W2:W16)*ISTEXT(AK2:AK16)*(W2:W16<>AK2:AK16))+SUMPRODUCT(ISNUMBER(W2:W16)*ISNUMBER(AK2:AK16)*(W2:W16<>AK2:AK16))","v":0},{"$f":"SUMPRODUCT(ISNUMBER(X2:X16)*ISTEXT(AK2:AK16)*(X2:X16<>AK2:AK16))+SUMPRODUCT(ISTEXT(X2:X16)*ISNUMBER(AK2:AK16)*(X2:X16<>AK2:AK16))+SUMPRODUCT(ISTEXT(X2:X16)*ISTEXT(AK2:AK16)*(X2:X16<>AK2:AK16))+SUMPRODUCT(ISNUMBER(X2:X16)*ISNUMBER(AK2:AK16)*(X2:X16<>AK2:AK16))","v":0},{"$f":"SUMPRODUCT(ISNUMBER(Y2:Y16)*ISTEXT(AK2:AK16)*(Y2:Y16<>AK2:AK16))+SUMPRODUCT(ISTEXT(Y2:Y16)*ISNUMBER(AK2:AK16)*(Y2:Y16<>AK2:AK16))+SUMPRODUCT(ISTEXT(Y2:Y16)*ISTEXT(AK2:AK16)*(Y2:Y16<>AK2:AK16))+SUMPRODUCT(ISNUMBER(Y2:Y16)*ISNUMBER(AK2:AK16)*(Y2:Y16<>AK2:AK16))","v":0},{"$f":"SUMPRODUCT(ISNUMBER(Z2:Z16)*ISTEXT(AK2:AK16)*(Z2:Z16<>AK2:AK16))+SUMPRODUCT(ISTEXT(Z2:Z16)*ISNUMBER(AK2:AK16)*(Z2:Z16<>AK2:AK16))+SUMPRODUCT(ISTEXT(Z2:Z16)*ISTEXT(AK2:AK16)*(Z2:Z16<>AK2:AK16))+SUMPRODUCT(ISNUMBER(Z2:Z16)*ISNUMBER(AK2:AK16)*(Z2:Z16<>AK2:AK16))","v":0},{"$f":"SUMPRODUCT(ISNUMBER(AA2:AA16)*ISTEXT(AK2:AK16)*(AA2:AA16<>AK2:AK16))+SUMPRODUCT(ISTEXT(AA2:AA16)*ISNUMBER(AK2:AK16)*(AA2:AA16<>AK2:AK16))+SUMPRODUCT(ISTEXT(AA2:AA16)*ISTEXT(AK2:AK16)*(AA2:AA16<>AK2:AK16))+SUMPRODUCT(ISNUMBER(AA2:AA16)*ISNUMBER(AK2:AK16)*(AA2:AA16<>AK2:AK16))","v":0},{"$f":"SUMPRODUCT(ISNUMBER(AB2:AB16)*ISTEXT(AK2:AK16)*(AB2:AB16<>AK2:AK16))+SUMPRODUCT(ISTEXT(AB2:AB16)*ISNUMBER(AK2:AK16)*(AB2:AB16<>AK2:AK16))+SUMPRODUCT(ISTEXT(AB2:AB16)*ISTEXT(AK2:AK16)*(AB2:AB16<>AK2:AK16))+SUMPRODUCT(ISNUMBER(AB2:AB16)*ISNUMBER(AK2:AK16)*(AB2:AB16<>AK2:AK16))","v":0},{"$f":"SUMPRODUCT(ISNUMBER(AC2:AC16)*ISTEXT(AK2:AK16)*(AC2:AC16<>AK2:AK16))+SUMPRODUCT(ISTEXT(AC2:AC16)*ISNUMBER(AK2:AK16)*(AC2:AC16<>AK2:AK16))+SUMPRODUCT(ISTEXT(AC2:AC16)*ISTEXT(AK2:AK16)*(AC2:AC16<>AK2:AK16))+SUMPRODUCT(ISNUMBER(AC2:AC16)*ISNUMBER(AK2:AK16)*(AC2:AC16<>AK2:AK16))","v":0},{"$f":"SUMPRODUCT(ISNUMBER(AD2:AD16)*ISTEXT(AK2:AK16)*(AD2:AD16<>AK2:AK16))+SUMPRODUCT(ISTEXT(AD2:AD16)*ISNUMBER(AK2:AK16)*(AD2:AD16<>AK2:AK16))+SUMPRODUCT(ISTEXT(AD2:AD16)*ISTEXT(AK2:AK16)*(AD2:AD16<>AK2:AK16))+SUMPRODUCT(ISNUMBER(AD2:AD16)*ISNUMBER(AK2:AK16)*(AD2:AD16<>AK2:AK16))","v":0},{"$f":"SUMPRODUCT(ISNUMBER(AE2:AE16)*ISTEXT(AK2:AK16)*(AE2:AE16<>AK2:AK16))+SUMPRODUCT(ISTEXT(AE2:AE16)*ISNUMBER(AK2:AK16)*(AE2:AE16<>AK2:AK16))+SUMPRODUCT(ISTEXT(AE2:AE16)*ISTEXT(AK2:AK16)*(AE2:AE16<>AK2:AK16))+SUMPRODUCT(ISNUMBER(AE2:AE16)*ISNUMBER(AK2:AK16)*(AE2:AE16<>AK2:AK16))","v":0},{"$f":"SUMPRODUCT(ISNUMBER(AF2:AF16)*ISTEXT(AK2:AK16)*(AF2:AF16<>AK2:AK16))+SUMPRODUCT(ISTEXT(AF2:AF16)*ISNUMBER(AK2:AK16)*(AF2:AF16<>AK2:AK16))+SUMPRODUCT(ISTEXT(AF2:AF16)*ISTEXT(AK2:AK16)*(AF2:AF16<>AK2:AK16))+SUMPRODUCT(ISNUMBER(AF2:AF16)*ISNUMBER(AK2:AK16)*(AF2:AF16<>AK2:AK16))","v":0},{"$f":"SUMPRODUCT(ISNUMBER(AG2:AG16)*ISTEXT(AK2:AK16)*(AG2:AG16<>AK2:AK16))+SUMPRODUCT(ISTEXT(AG2:AG16)*ISNUMBER(AK2:AK16)*(AG2:AG16<>AK2:AK16))+SUMPRODUCT(ISTEXT(AG2:AG16)*ISTEXT(AK2:AK16)*(AG2:AG16<>AK2:AK16))+SUMPRODUCT(ISNUMBER(AG2:AG16)*ISNUMBER(AK2:AK16)*(AG2:AG16<>AK2:AK16))","v":0},{"$f":"SUMPRODUCT(ISNUMBER(AH2:AH16)*ISTEXT(AK2:AK16)*(AH2:AH16<>AK2:AK16))+SUMPRODUCT(ISTEXT(AH2:AH16)*ISNUMBER(AK2:AK16)*(AH2:AH16<>AK2:AK16))+SUMPRODUCT(ISTEXT(AH2:AH16)*ISTEXT(AK2:AK16)*(AH2:AH16<>AK2:AK16))+SUMPRODUCT(ISNUMBER(AH2:AH16)*ISNUMBER(AK2:AK16)*(AH2:AH16<>AK2:AK16))","v":0},{"$f":"SUMPRODUCT(ISNUMBER(AI2:AI16)*ISTEXT(AK2:AK16)*(AI2:AI16<>AK2:AK16))+SUMPRODUCT(ISTEXT(AI2:AI16)*ISNUMBER(AK2:AK16)*(AI2:AI16<>AK2:AK16))+SUMPRODUCT(ISTEXT(AI2:AI16)*ISTEXT(AK2:AK16)*(AI2:AI16<>AK2:AK16))+SUMPRODUCT(ISNUMBER(AI2:AI16)*ISNUMBER(AK2:AK16)*(AI2:AI16<>AK2:AK16))","v":0},{"$f":"SUMPRODUCT(ISNUMBER(AJ2:AJ16)*ISTEXT(AK2:AK16)*(AJ2:AJ16<>AK2:AK16))+SUMPRODUCT(ISTEXT(AJ2:AJ16)*ISNUMBER(AK2:AK16)*(AJ2:AJ16<>AK2:AK16))+SUMPRODUCT(ISTEXT(AJ2:AJ16)*ISTEXT(AK2:AK16)*(AJ2:AJ16<>AK2:AK16))+SUMPRODUCT(ISNUMBER(AJ2:AJ16)*ISNUMBER(AK2:AK16)*(AJ2:AJ16<>AK2:AK16))","v":0}]
[]
[]
[]
[]
[]
[]
[]
[]
[]
[]
[]
[]
[]
[]
[]
[]
[]
[]
[]
[]
[]
[]
[]
[]
[]
[]
[]
[]
[]
[]
[]
[]
[]
[]
[]
[]
[]
[]
[]
[]
[]
[]
[]
[2]
[2]